{"text_format":"1","workbook":"xlsx","n_sheets":2,"sheets":["2019","2018"],"not_rendered":{"charts":0,"images":0,"macros":1,"external_links":0,"defined_names":2,"comments":0,"pivot_tables":0},"unopened":[],"bounds":{"document_bytes":16777216,"sheet_cells":100000,"rows_first":2000,"rows_last":500,"rows_between":2000,"halvings":0,"cell_chars":16384,"cell_head_chars":4096},"cells_cut":0,"cells_raw":0,"read":"whole","date_system":"1900"}

{"sheet":"2019","index":0,"n_rows":501,"n_cols":4,"rows_kept":501,"cut":false,"hidden":false,"merged":[]}
["Franchise","2019 Rankings","2018 Rankings","Change in Rankings"]
["McDonald's",1,{"$f":"VLOOKUP(A2,'2018'!A:B,2,FALSE)","v":1},0]
["Dunkin'",2,{"$f":"VLOOKUP(A3,'2018'!A:B,2,FALSE)","v":3},1]
["Sonic Drive-In",3,{"$f":"VLOOKUP(A4,'2018'!A:B,2,FALSE)","v":6},3]
["Taco Bell",4,{"$f":"VLOOKUP(A5,'2018'!A:B,2,FALSE)","v":8},4]
["The UPS Store",5,{"$f":"VLOOKUP(A6,'2018'!A:B,2,FALSE)","v":4},-1]
["Culver's",6,{"$f":"VLOOKUP(A7,'2018'!A:B,2,FALSE)","v":13},7]
["Planet Fitness",7,{"$f":"VLOOKUP(A8,'2018'!A:B,2,FALSE)","v":21},14]
["Great Clips",8,{"$f":"VLOOKUP(A9,'2018'!A:B,2,FALSE)","v":7},-1]
["Jersey Mike's Subs",9,{"$f":"VLOOKUP(A10,'2018'!A:B,2,FALSE)","v":24},15]
["7-Eleven Inc.",10,{"$f":"VLOOKUP(A11,'2018'!A:B,2,FALSE)","v":2},-8]
["Jimmy John's Gourmet Sandwiches",11,{"$f":"VLOOKUP(A12,'2018'!A:B,2,FALSE)","v":11},0]
["Baskin-Robbins",12,{"$f":"VLOOKUP(A13,'2018'!A:B,2,FALSE)","v":41},29]
["Ace Hardware Corp.",13,{"$f":"VLOOKUP(A14,'2018'!A:B,2,FALSE)","v":19},6]
["Kumon Math & Reading Centers",14,{"$f":"VLOOKUP(A15,'2018'!A:B,2,FALSE)","v":20},6]
["RE/MAX LLC",15,{"$f":"VLOOKUP(A16,'2018'!A:B,2,FALSE)","v":5},-10]
["Pizza Hut LLC",16,{"$f":"VLOOKUP(A17,'2018'!A:B,2,FALSE)","v":47},31]
["Sport Clips",17,{"$f":"VLOOKUP(A18,'2018'!A:B,2,FALSE)","v":10},-7]
["Snap-on Tools",18,{"$f":"VLOOKUP(A19,'2018'!A:B,2,FALSE)","v":30},12]
["Jack in the Box",19,{"$f":"VLOOKUP(A20,'2018'!A:B,2,FALSE)","v":43},24]
["Anytime Fitness",20,{"$f":"VLOOKUP(A21,'2018'!A:B,2,FALSE)","v":17},-3]
["Dairy Queen",21,{"$f":"VLOOKUP(A22,'2018'!A:B,2,FALSE)","v":67},46]
["Smoothie King",22,{"$f":"VLOOKUP(A23,'2018'!A:B,2,FALSE)","v":35},13]
["KFC US LLC",23,{"$f":"VLOOKUP(A24,'2018'!A:B,2,FALSE)","v":233},210]
["CPR-Cell Phone Repair",24,{"$f":"VLOOKUP(A25,'2018'!A:B,2,FALSE)","v":26},2]
["Orangetheory Fitness",25,{"$f":"VLOOKUP(A26,'2018'!A:B,2,FALSE)","v":48},23]
["Bojangles' Famous Chicken 'n Biscuits",26,{"$f":"VLOOKUP(A27,'2018'!A:B,2,FALSE)","v":57},31]
["Hampton by Hilton",27,{"$f":"VLOOKUP(A28,'2018'!A:B,2,FALSE)","v":29},2]
["Servpro",28,{"$f":"VLOOKUP(A29,'2018'!A:B,2,FALSE)","v":12},-16]
["uBreakiFix",29,{"$f":"VLOOKUP(A30,'2018'!A:B,2,FALSE)","v":18},-11]
["HomeVestors of America Inc.",30,{"$f":"VLOOKUP(A31,'2018'!A:B,2,FALSE)","v":37},7]
["Supercuts",31,{"$f":"VLOOKUP(A32,'2018'!A:B,2,FALSE)","v":14},-17]
["Keller Williams",32,{"$f":"VLOOKUP(A33,'2018'!A:B,2,FALSE)","v":22},-10]
["Carl's Jr. Restaurants LLC",33,{"$f":"VLOOKUP(A34,'2018'!A:B,2,FALSE)","v":15},-18]
["Golden Corral Restaurants",34,{"$f":"VLOOKUP(A35,'2018'!A:B,2,FALSE)","v":54},20]
["Budget Blinds LLC",35,{"$f":"VLOOKUP(A36,'2018'!A:B,2,FALSE)","v":23},-12]
["Holiday Inn and Holiday Inn Express",36,{"$f":"VLOOKUP(A37,'2018'!A:B,2,FALSE)","v":62},26]
["Matco Tools",37,{"$f":"VLOOKUP(A38,'2018'!A:B,2,FALSE)","v":36},-1]
["Merry Maids",38,{"$f":"VLOOKUP(A39,'2018'!A:B,2,FALSE)","v":38},0]
["Jan-Pro Franchising Int'l. Inc.",39,{"$f":"VLOOKUP(A40,'2018'!A:B,2,FALSE)","v":51},12]
["Mathnasium Learning Centers",40,{"$f":"VLOOKUP(A41,'2018'!A:B,2,FALSE)","v":28},-12]
["McAlister's Deli",41,{"$f":"VLOOKUP(A42,'2018'!A:B,2,FALSE)","v":114},73]
["Stratus Building Solutions",42,{"$f":"VLOOKUP(A43,'2018'!A:B,2,FALSE)","v":103},61]
["Arby's",43,{"$f":"VLOOKUP(A44,'2018'!A:B,2,FALSE)","v":112},69]
["Papa John's Int'l. Inc.",44,{"$f":"VLOOKUP(A45,'2018'!A:B,2,FALSE)","v":16},-28]
["Hardee's Restaurants LLC",45,{"$f":"VLOOKUP(A46,'2018'!A:B,2,FALSE)","v":9},-36]
["Pet Supplies Plus",46,{"$f":"VLOOKUP(A47,'2018'!A:B,2,FALSE)","v":32},-14]
["Mosquito Joe",47,{"$f":"VLOOKUP(A48,'2018'!A:B,2,FALSE)","v":42},-5]
["Huntington Learning Centers",48,{"$f":"VLOOKUP(A49,'2018'!A:B,2,FALSE)","v":154},106]
["Firehouse Subs",49,{"$f":"VLOOKUP(A50,'2018'!A:B,2,FALSE)","v":39},-10]
["Goldfish Swim School Franchising LLC",50,{"$f":"VLOOKUP(A51,'2018'!A:B,2,FALSE)","v":55},5]
["Freddy's Frozen Custard & Steakburgers",51,{"$f":"VLOOKUP(A52,'2018'!A:B,2,FALSE)","v":44},-7]
["Anago Cleaning Systems",52,{"$f":"VLOOKUP(A53,'2018'!A:B,2,FALSE)","v":68},16]
["Doubletree by Hilton",53,{"$f":"VLOOKUP(A54,'2018'!A:B,2,FALSE)","v":144},91]
["Mac Tools",54,{"$f":"VLOOKUP(A55,'2018'!A:B,2,FALSE)","v":40},-14]
["Primrose School Franchising Co.",55,{"$f":"VLOOKUP(A56,'2018'!A:B,2,FALSE)","v":27},-28]
["Hilton Hotels and Resorts",56,{"$f":"VLOOKUP(A57,'2018'!A:B,2,FALSE)","v":33},-23]
["911 Restoration",57,{"$f":"VLOOKUP(A58,'2018'!A:B,2,FALSE)","v":162},105]
["Lawn Doctor",58,{"$f":"VLOOKUP(A59,'2018'!A:B,2,FALSE)","v":91},33]
["Weed Man",59,{"$f":"VLOOKUP(A60,'2018'!A:B,2,FALSE)","v":59},0]
["Cruise Planners",60,{"$f":"VLOOKUP(A61,'2018'!A:B,2,FALSE)","v":60},0]
["Blaze Fast-Fire'd Pizza",61,{"$f":"VLOOKUP(A62,'2018'!A:B,2,FALSE)","v":95},34]
["Red Roof Inn",62,{"$f":"VLOOKUP(A63,'2018'!A:B,2,FALSE)","v":92},30]
["Miracle-Ear Inc.",63,"NEW",{"$error":"#N/A"}]
["Fyzical Therapy & Balance Centers",64,{"$f":"VLOOKUP(A65,'2018'!A:B,2,FALSE)","v":117},53]
["Tropical Smoothie Cafe",65,{"$f":"VLOOKUP(A66,'2018'!A:B,2,FALSE)","v":71},6]
["Express Employment Professionals",66,{"$f":"VLOOKUP(A67,'2018'!A:B,2,FALSE)","v":69},3]
["Kona Ice",67,{"$f":"VLOOKUP(A68,'2018'!A:B,2,FALSE)","v":83},16]
["Kilwins Chocolates Franchise Inc.",68,{"$f":"VLOOKUP(A69,'2018'!A:B,2,FALSE)","v":94},26]
["The Maids",69,{"$f":"VLOOKUP(A70,'2018'!A:B,2,FALSE)","v":46},-23]
["Homewood Suites by Hilton",70,{"$f":"VLOOKUP(A71,'2018'!A:B,2,FALSE)","v":66},-4]
["Potbelly Sandwich Shop",71,{"$f":"VLOOKUP(A72,'2018'!A:B,2,FALSE)","v":269},198]
["Chem-Dry Carpet & Upholstery Cleaning",72,{"$f":"VLOOKUP(A73,'2018'!A:B,2,FALSE)","v":137},65]
["Motel 6",73,{"$f":"VLOOKUP(A74,'2018'!A:B,2,FALSE)","v":116},43]
["Cinnabon",74,{"$f":"VLOOKUP(A75,'2018'!A:B,2,FALSE)","v":98},24]
["Pearle Vision",75,{"$f":"VLOOKUP(A76,'2018'!A:B,2,FALSE)","v":72},-3]
["Vanguard Cleaning Systems",76,{"$f":"VLOOKUP(A77,'2018'!A:B,2,FALSE)","v":84},8]
["Fuzzy's Taco Shop",77,{"$f":"VLOOKUP(A78,'2018'!A:B,2,FALSE)","v":123},46]
["Hilton Garden Inn",78,{"$f":"VLOOKUP(A79,'2018'!A:B,2,FALSE)","v":100},22]
["Auntie Anne's Hand-Rolled Soft Pretzels",79,{"$f":"VLOOKUP(A80,'2018'!A:B,2,FALSE)","v":124},45]
["Ben & Jerry's",80,{"$f":"VLOOKUP(A81,'2018'!A:B,2,FALSE)","v":261},181]
["Cornwell Quality Tools",81,{"$f":"VLOOKUP(A82,'2018'!A:B,2,FALSE)","v":145},64]
["Goddard Systems Inc.",82,{"$f":"VLOOKUP(A83,'2018'!A:B,2,FALSE)","v":77},-5]
["Marco's Pizza",83,{"$f":"VLOOKUP(A84,'2018'!A:B,2,FALSE)","v":25},-58]
["The Learning Experience Academy of Early Education",84,{"$f":"VLOOKUP(A85,'2018'!A:B,2,FALSE)","v":79},-5]
["SafeSplash/SwimLabs/Swimtastic",85,{"$f":"VLOOKUP(A86,'2018'!A:B,2,FALSE)","v":325},240]
["Palm Beach Tan",86,{"$f":"VLOOKUP(A87,'2018'!A:B,2,FALSE)","v":52},-34]
["British Swim School USA",87,{"$f":"VLOOKUP(A88,'2018'!A:B,2,FALSE)","v":121},34]
["Checkers Drive-In Restaurants Inc.",88,{"$f":"VLOOKUP(A89,'2018'!A:B,2,FALSE)","v":140},52]
["Home2 Suites by Hilton",89,"NEW",{"$error":"#N/A"}]
["Jiffy Lube Int'l. Inc.",90,{"$f":"VLOOKUP(A91,'2018'!A:B,2,FALSE)","v":181},91]
["CMIT Solutions Inc.",91,{"$f":"VLOOKUP(A92,'2018'!A:B,2,FALSE)","v":186},95]
["Embassy Suites by Hilton",92,{"$f":"VLOOKUP(A93,'2018'!A:B,2,FALSE)","v":61},-31]
["Rooter-Man",93,{"$f":"VLOOKUP(A94,'2018'!A:B,2,FALSE)","v":107},14]
["Jazzercise Inc.",94,{"$f":"VLOOKUP(A95,'2018'!A:B,2,FALSE)","v":63},-31]
["FastSigns Int'l. Inc.",95,{"$f":"VLOOKUP(A96,'2018'!A:B,2,FALSE)","v":70},-25]
["Carstar Franchise Systems Inc.",96,{"$f":"VLOOKUP(A97,'2018'!A:B,2,FALSE)","v":255},159]
["Urban Air Adventure Park",97,"NEW",{"$error":"#N/A"}]
["Pillar To Post Home Inspectors",98,{"$f":"VLOOKUP(A99,'2018'!A:B,2,FALSE)","v":64},-34]
["Express Oil Change & Tire Engineers",99,{"$f":"VLOOKUP(A100,'2018'!A:B,2,FALSE)","v":120},21]
["Spring-Green Lawn Care",100,{"$f":"VLOOKUP(A101,'2018'!A:B,2,FALSE)","v":169},69]
["Dream Vacations",101,{"$f":"VLOOKUP(A102,'2018'!A:B,2,FALSE)","v":138},37]
["Charleys Philly Steaks",102,{"$f":"VLOOKUP(A103,'2018'!A:B,2,FALSE)","v":160},58]
["Weichert Real Estate Affiliates Inc.",103,{"$f":"VLOOKUP(A104,'2018'!A:B,2,FALSE)","v":139},36]
["Fleet Feet",104,{"$f":"VLOOKUP(A105,'2018'!A:B,2,FALSE)","v":90},-14]
["Taco John's Int'l. Inc.",105,"NEW",{"$error":"#N/A"}]
["Valvoline Instant Oil Change",106,{"$f":"VLOOKUP(A107,'2018'!A:B,2,FALSE)","v":34},-72]
["American Family Care",107,{"$f":"VLOOKUP(A108,'2018'!A:B,2,FALSE)","v":115},8]
["Edible Arrangements",108,{"$f":"VLOOKUP(A109,'2018'!A:B,2,FALSE)","v":53},-55]
["The Joint Corp.",109,{"$f":"VLOOKUP(A110,'2018'!A:B,2,FALSE)","v":109},0]
["Chester's",110,{"$f":"VLOOKUP(A111,'2018'!A:B,2,FALSE)","v":153},43]
["Kiddie Academy",111,{"$f":"VLOOKUP(A112,'2018'!A:B,2,FALSE)","v":73},-38]
["9Round",112,{"$f":"VLOOKUP(A113,'2018'!A:B,2,FALSE)","v":197},85]
["One Hour Heating & Air Conditioning",113,{"$f":"VLOOKUP(A114,'2018'!A:B,2,FALSE)","v":104},-9]
["Batteries Plus Bulbs",114,{"$f":"VLOOKUP(A115,'2018'!A:B,2,FALSE)","v":118},4]
["Pirtek",115,{"$f":"VLOOKUP(A116,'2018'!A:B,2,FALSE)","v":78},-37]
["Buffalo Wild Wings",116,"NEW",{"$error":"#N/A"}]
["HoneyBaked Ham",117,{"$f":"VLOOKUP(A118,'2018'!A:B,2,FALSE)","v":130},13]
["The Little Gym Int'l.",118,{"$f":"VLOOKUP(A119,'2018'!A:B,2,FALSE)","v":189},71]
["Drybar",119,"NEW",{"$error":"#N/A"}]
["Novus Glass",120,{"$f":"VLOOKUP(A121,'2018'!A:B,2,FALSE)","v":455},335]
["MaidPro",121,{"$f":"VLOOKUP(A122,'2018'!A:B,2,FALSE)","v":80},-41]
["Fit Body Boot Camp",122,{"$f":"VLOOKUP(A123,'2018'!A:B,2,FALSE)","v":350},228]
["Minuteman Press Int'l. Inc.",123,{"$f":"VLOOKUP(A124,'2018'!A:B,2,FALSE)","v":141},18]
["AlphaGraphics",124,{"$f":"VLOOKUP(A125,'2018'!A:B,2,FALSE)","v":142},18]
["Subway",125,{"$f":"VLOOKUP(A126,'2018'!A:B,2,FALSE)","v":105},-20]
["Wienerschnitzel",126,{"$f":"VLOOKUP(A127,'2018'!A:B,2,FALSE)","v":166},40]
["Brightway Insurance",127,{"$f":"VLOOKUP(A128,'2018'!A:B,2,FALSE)","v":199},72]
["Bach to Rock",128,{"$f":"VLOOKUP(A129,'2018'!A:B,2,FALSE)","v":227},99]
["Once Upon A Child",129,{"$f":"VLOOKUP(A130,'2018'!A:B,2,FALSE)","v":58},-71]
["Labor Finders",130,{"$f":"VLOOKUP(A131,'2018'!A:B,2,FALSE)","v":129},-1]
["Hungry Howie's Pizza & Subs",131,{"$f":"VLOOKUP(A132,'2018'!A:B,2,FALSE)","v":214},83]
["Wild Birds Unlimited",132,{"$f":"VLOOKUP(A133,'2018'!A:B,2,FALSE)","v":218},86]
["Hand and Stone Massage and Facial Spa",133,{"$f":"VLOOKUP(A134,'2018'!A:B,2,FALSE)","v":96},-37]
["Club Pilates Franchise",134,{"$f":"VLOOKUP(A135,'2018'!A:B,2,FALSE)","v":237},103]
["Rosati's Pizza",135,{"$f":"VLOOKUP(A136,'2018'!A:B,2,FALSE)","v":239},104]
["Realty One Group",136,{"$f":"VLOOKUP(A137,'2018'!A:B,2,FALSE)","v":230},94]
["Jet's Pizza",137,{"$f":"VLOOKUP(A138,'2018'!A:B,2,FALSE)","v":127},-10]
["College Nannies, Sitters and Tutors",138,{"$f":"VLOOKUP(A139,'2018'!A:B,2,FALSE)","v":56},-82]
["Captain D's LLC",139,{"$f":"VLOOKUP(A140,'2018'!A:B,2,FALSE)","v":372},233]
["Baymont by Wyndham",140,{"$f":"VLOOKUP(A141,'2018'!A:B,2,FALSE)","v":299},159]
["Beef Jerky Outlet Franchise Inc.",141,{"$f":"VLOOKUP(A142,'2018'!A:B,2,FALSE)","v":99},-42]
["GNC Franchising",142,{"$f":"VLOOKUP(A143,'2018'!A:B,2,FALSE)","v":85},-57]
["College Hunks Hauling Junk & Moving",143,{"$f":"VLOOKUP(A144,'2018'!A:B,2,FALSE)","v":260},117]
["Interim HealthCare",144,{"$f":"VLOOKUP(A145,'2018'!A:B,2,FALSE)","v":102},-42]
["Aqua-Tots Swim Schools",145,"NEW",{"$error":"#N/A"}]
["Which Wich Superior Sandwiches",146,{"$f":"VLOOKUP(A147,'2018'!A:B,2,FALSE)","v":204},58]
["Cookie Cutters Haircuts for Kids",147,{"$f":"VLOOKUP(A148,'2018'!A:B,2,FALSE)","v":444},297]
["Crunch Franchise",148,{"$f":"VLOOKUP(A149,'2018'!A:B,2,FALSE)","v":216},68]
["Moe's Southwest Grill",149,{"$f":"VLOOKUP(A150,'2018'!A:B,2,FALSE)","v":219},70]
["Penn Station East Coast Subs",150,{"$f":"VLOOKUP(A151,'2018'!A:B,2,FALSE)","v":177},27]
["Spherion Staffing",151,{"$f":"VLOOKUP(A152,'2018'!A:B,2,FALSE)","v":203},52]
["Circle K",152,{"$f":"VLOOKUP(A153,'2018'!A:B,2,FALSE)","v":208},56]
["Drama Kids Int'l.",153,{"$f":"VLOOKUP(A154,'2018'!A:B,2,FALSE)","v":192},39]
["Mountain Mike's Pizza",154,"NEW",{"$error":"#N/A"}]
["Patrice & Associates",155,{"$f":"VLOOKUP(A156,'2018'!A:B,2,FALSE)","v":119},-36]
["PrideStaff",156,{"$f":"VLOOKUP(A157,'2018'!A:B,2,FALSE)","v":113},-43]
["Kids 'R' Kids Learning Academies",157,"NEW",{"$error":"#N/A"}]
["My Gym Children's Fitness Center",158,{"$f":"VLOOKUP(A159,'2018'!A:B,2,FALSE)","v":182},24]
["Donatos",159,{"$f":"VLOOKUP(A160,'2018'!A:B,2,FALSE)","v":195},36]
["Office Evolution",160,{"$f":"VLOOKUP(A161,'2018'!A:B,2,FALSE)","v":198},38]
["YESCO Sign & Lighting Service",161,{"$f":"VLOOKUP(A162,'2018'!A:B,2,FALSE)","v":143},-18]
["Golden Chick",162,{"$f":"VLOOKUP(A163,'2018'!A:B,2,FALSE)","v":378},216]
["Painting with a Twist",163,{"$f":"VLOOKUP(A164,'2018'!A:B,2,FALSE)","v":168},5]
["Profile by Sanford",164,"NEW",{"$error":"#N/A"}]
["Restoration 1",165,{"$f":"VLOOKUP(A166,'2018'!A:B,2,FALSE)","v":132},-33]
["Dale Carnegie Training",166,{"$f":"VLOOKUP(A167,'2018'!A:B,2,FALSE)","v":171},5]
["Tide Dry Cleaners",167,{"$f":"VLOOKUP(A168,'2018'!A:B,2,FALSE)","v":251},84]
["Petland",168,{"$f":"VLOOKUP(A169,'2018'!A:B,2,FALSE)","v":209},41]
["Visiting Angels",169,{"$f":"VLOOKUP(A170,'2018'!A:B,2,FALSE)","v":74},-95]
["Experimac",170,{"$f":"VLOOKUP(A171,'2018'!A:B,2,FALSE)","v":223},53]
["Leadership Management Inc.",171,{"$f":"VLOOKUP(A172,'2018'!A:B,2,FALSE)","v":314},143]
["Big O Tires LLC",172,{"$f":"VLOOKUP(A173,'2018'!A:B,2,FALSE)","v":250},78]
["Miracle Method Surface Refinishing",173,{"$f":"VLOOKUP(A174,'2018'!A:B,2,FALSE)","v":173},0]
["Grease Monkey Franchising LLC",174,{"$f":"VLOOKUP(A175,'2018'!A:B,2,FALSE)","v":278},104]
["City Wide Franchise",175,{"$f":"VLOOKUP(A176,'2018'!A:B,2,FALSE)","v":150},-25]
["TeamLogic IT",176,{"$f":"VLOOKUP(A177,'2018'!A:B,2,FALSE)","v":242},66]
["Skyhawks Sports & Supertots Sports Academy",177,{"$f":"VLOOKUP(A178,'2018'!A:B,2,FALSE)","v":284},107]
["NaturaLawn of America Inc.",178,{"$f":"VLOOKUP(A179,'2018'!A:B,2,FALSE)","v":172},-6]
["PuroClean",179,{"$f":"VLOOKUP(A180,'2018'!A:B,2,FALSE)","v":258},79]
["Maaco Franchising Inc.",180,{"$f":"VLOOKUP(A181,'2018'!A:B,2,FALSE)","v":228},48]
["Postal Annex+",181,{"$f":"VLOOKUP(A182,'2018'!A:B,2,FALSE)","v":176},-5]
["Lightbridge Academy",182,"NEW",{"$error":"#N/A"}]
["BirthdayPak",183,"NEW",{"$error":"#N/A"}]
["BrightStar Care",184,{"$f":"VLOOKUP(A185,'2018'!A:B,2,FALSE)","v":75},-109]
["Molly Maid",185,{"$f":"VLOOKUP(A186,'2018'!A:B,2,FALSE)","v":174},-11]
["Great American Cookies",186,{"$f":"VLOOKUP(A187,'2018'!A:B,2,FALSE)","v":222},36]
["Plato's Closet",187,{"$f":"VLOOKUP(A188,'2018'!A:B,2,FALSE)","v":97},-90]
["Salons by JC",188,{"$f":"VLOOKUP(A189,'2018'!A:B,2,FALSE)","v":108},-80]
["Ziebart",189,{"$f":"VLOOKUP(A190,'2018'!A:B,2,FALSE)","v":151},-38]
["Nurse Next Door Home Care Services",190,{"$f":"VLOOKUP(A191,'2018'!A:B,2,FALSE)","v":50},-140]
["Schlotzsky's",191,{"$f":"VLOOKUP(A192,'2018'!A:B,2,FALSE)","v":231},40]
["Senior Helpers",192,{"$f":"VLOOKUP(A193,'2018'!A:B,2,FALSE)","v":157},-35]
["Camp Bow Wow",193,{"$f":"VLOOKUP(A194,'2018'!A:B,2,FALSE)","v":146},-47]
["Floor Coverings International",194,{"$f":"VLOOKUP(A195,'2018'!A:B,2,FALSE)","v":156},-38]
["Sky Zone",195,{"$f":"VLOOKUP(A196,'2018'!A:B,2,FALSE)","v":81},-114]
["Gyu-Kaku Japanese BBQ Restaurant",196,{"$f":"VLOOKUP(A197,'2018'!A:B,2,FALSE)","v":246},50]
["Phenix Salon Suites Franchising LLC",197,{"$f":"VLOOKUP(A198,'2018'!A:B,2,FALSE)","v":122},-75]
["Kid to Kid",198,{"$f":"VLOOKUP(A199,'2018'!A:B,2,FALSE)","v":207},9]
["Buildingstars Int'l. Inc.",199,{"$f":"VLOOKUP(A200,'2018'!A:B,2,FALSE)","v":224},25]
["Rent-A-Center",200,{"$f":"VLOOKUP(A201,'2018'!A:B,2,FALSE)","v":266},66]
["Window Gang",201,{"$f":"VLOOKUP(A202,'2018'!A:B,2,FALSE)","v":338},137]
["Yogi Bear's Jellystone Park Camp-Resorts",202,{"$f":"VLOOKUP(A203,'2018'!A:B,2,FALSE)","v":265},63]
["Pop-A-Lock Franchise System",203,{"$f":"VLOOKUP(A204,'2018'!A:B,2,FALSE)","v":93},-110]
["Dogtopia",204,{"$f":"VLOOKUP(A205,'2018'!A:B,2,FALSE)","v":205},1]
["Uptown Cheapskate",205,{"$f":"VLOOKUP(A206,'2018'!A:B,2,FALSE)","v":288},83]
["Del Taco Fresh Mexican Grill",206,{"$f":"VLOOKUP(A207,'2018'!A:B,2,FALSE)","v":188},-18]
["Fibrenew",207,{"$f":"VLOOKUP(A208,'2018'!A:B,2,FALSE)","v":185},-22]
["Pinot's Palette",208,{"$f":"VLOOKUP(A209,'2018'!A:B,2,FALSE)","v":178},-30]
["Creamistry Franchise Inc.",209,"NEW",{"$error":"#N/A"}]
["Christian Brothers Automotive Corp.",210,{"$f":"VLOOKUP(A211,'2018'!A:B,2,FALSE)","v":357},147]
["Right at Home LLC",211,{"$f":"VLOOKUP(A212,'2018'!A:B,2,FALSE)","v":49},-162]
["Signarama",212,{"$f":"VLOOKUP(A213,'2018'!A:B,2,FALSE)","v":249},37]
["Hooters",213,{"$f":"VLOOKUP(A214,'2018'!A:B,2,FALSE)","v":236},23]
["Nekter Juice Bar Inc.",214,{"$f":"VLOOKUP(A215,'2018'!A:B,2,FALSE)","v":384},170]
["Watermill Express Franchising",215,{"$f":"VLOOKUP(A216,'2018'!A:B,2,FALSE)","v":244},29]
["Destination Athlete LLC",216,{"$f":"VLOOKUP(A217,'2018'!A:B,2,FALSE)","v":304},88]
["The Human Bean Drive Thru",217,{"$f":"VLOOKUP(A218,'2018'!A:B,2,FALSE)","v":336},119]
["RNR Tire Express & Custom Wheels",218,{"$f":"VLOOKUP(A219,'2018'!A:B,2,FALSE)","v":202},-16]
["Rainbow Int'l. Restoration & Cleaning",219,{"$f":"VLOOKUP(A220,'2018'!A:B,2,FALSE)","v":409},190]
["H&R Block",220,{"$f":"VLOOKUP(A221,'2018'!A:B,2,FALSE)","v":286},66]
["L&L Hawaiian Barbecue",221,{"$f":"VLOOKUP(A222,'2018'!A:B,2,FALSE)","v":240},19]
["FirstLight Home Care Franchising LLC",222,{"$f":"VLOOKUP(A223,'2018'!A:B,2,FALSE)","v":65},-157]
["Roy Rogers Restaurants",223,{"$f":"VLOOKUP(A224,'2018'!A:B,2,FALSE)","v":229},6]
["Creative Colors Int'l. Inc.",224,{"$f":"VLOOKUP(A225,'2018'!A:B,2,FALSE)","v":341},117]
["Jamba Juice",225,"NEW",{"$error":"#N/A"}]
["Bar-B-Cutie SmokeHouse",226,{"$f":"VLOOKUP(A227,'2018'!A:B,2,FALSE)","v":326},100]
["Color Glo Int'l.",227,{"$f":"VLOOKUP(A228,'2018'!A:B,2,FALSE)","v":217},-10]
["Black Bear Diner",228,{"$f":"VLOOKUP(A229,'2018'!A:B,2,FALSE)","v":211},-17]
["AAMCO Transmissions and Total Car Care",229,{"$f":"VLOOKUP(A230,'2018'!A:B,2,FALSE)","v":315},86]
["Fiesta Auto Insurance and Tax",230,{"$f":"VLOOKUP(A231,'2018'!A:B,2,FALSE)","v":194},-36]
["GymGuyz",231,{"$f":"VLOOKUP(A232,'2018'!A:B,2,FALSE)","v":470},239]
["Steamatic Inc.",232,{"$f":"VLOOKUP(A233,'2018'!A:B,2,FALSE)","v":389},157]
["Furniture Medic",233,{"$f":"VLOOKUP(A234,'2018'!A:B,2,FALSE)","v":303},70]
["True Rest Franchising LLC",234,"NEW",{"$error":"#N/A"}]
["Togo's",235,{"$f":"VLOOKUP(A236,'2018'!A:B,2,FALSE)","v":330},95]
["Kolache Factory",236,{"$f":"VLOOKUP(A237,'2018'!A:B,2,FALSE)","v":416},180]
["Curio Collection by Hilton",237,"NEW",{"$error":"#N/A"}]
["N-Hance Wood Refinishing",238,{"$f":"VLOOKUP(A239,'2018'!A:B,2,FALSE)","v":159},-79]
["School of Rock",239,{"$f":"VLOOKUP(A240,'2018'!A:B,2,FALSE)","v":163},-76]
["Concrete Craft",240,"NEW",{"$error":"#N/A"}]
["Capriotti's Sandwich Shop Inc.",241,{"$f":"VLOOKUP(A242,'2018'!A:B,2,FALSE)","v":259},18]
["La Quinta",242,"NEW",{"$error":"#N/A"}]
["Orion Food Systems LLC",243,{"$f":"VLOOKUP(A244,'2018'!A:B,2,FALSE)","v":212},-31]
["Eye Level Learning Centers",244,"NEW",{"$error":"#N/A"}]
["Soccer Shots Franchising LLC",245,{"$f":"VLOOKUP(A246,'2018'!A:B,2,FALSE)","v":267},22]
["Old Chicago Pizza & Taproom",246,{"$f":"VLOOKUP(A247,'2018'!A:B,2,FALSE)","v":254},8]
["Duck Donuts Franchising Co.",247,"NEW",{"$error":"#N/A"}]
["Launch Trampoline Park",248,{"$f":"VLOOKUP(A249,'2018'!A:B,2,FALSE)","v":339},91]
["Shine Window Care and Holiday Lighting",249,"NEW",{"$error":"#N/A"}]
["Bin There Dump That",250,{"$f":"VLOOKUP(A251,'2018'!A:B,2,FALSE)","v":313},63]
["Fish Window Cleaning Services Inc.",251,{"$f":"VLOOKUP(A252,'2018'!A:B,2,FALSE)","v":193},-58]
["Fazoli's Franchising Systems LLC",252,"NEW",{"$error":"#N/A"}]
["The Melting Pot Restaurants Inc.",253,{"$f":"VLOOKUP(A254,'2018'!A:B,2,FALSE)","v":289},36]
["The Screenmobile",254,{"$f":"VLOOKUP(A255,'2018'!A:B,2,FALSE)","v":331},77]
["ServiceMaster Clean/ServiceMaster Restore",255,{"$f":"VLOOKUP(A256,'2018'!A:B,2,FALSE)","v":243},-12]
["Signal 88 Security",256,{"$f":"VLOOKUP(A257,'2018'!A:B,2,FALSE)","v":89},-167]
["Transworld Business Advisors",257,{"$f":"VLOOKUP(A258,'2018'!A:B,2,FALSE)","v":291},34]
["Two Men and a Truck Int'l. Inc.",258,{"$f":"VLOOKUP(A259,'2018'!A:B,2,FALSE)","v":87},-171]
["American Leak Detection",259,{"$f":"VLOOKUP(A260,'2018'!A:B,2,FALSE)","v":363},104]
["AmeriSpec Home Inspection Services",260,"NEW",{"$error":"#N/A"}]
["DreamMaker Bath & Kitchen",261,{"$f":"VLOOKUP(A262,'2018'!A:B,2,FALSE)","v":332},71]
["Property Management Inc.",262,{"$f":"VLOOKUP(A263,'2018'!A:B,2,FALSE)","v":152},-110]
["Workout Anytime 24/7",263,{"$f":"VLOOKUP(A264,'2018'!A:B,2,FALSE)","v":394},131]
["Brass Tap",264,{"$f":"VLOOKUP(A265,'2018'!A:B,2,FALSE)","v":213},-51]
["360 Painting",265,{"$f":"VLOOKUP(A266,'2018'!A:B,2,FALSE)","v":287},22]
["Pro Image Sports",266,{"$f":"VLOOKUP(A267,'2018'!A:B,2,FALSE)","v":110},-156]
["Pure Barre",267,{"$f":"VLOOKUP(A268,'2018'!A:B,2,FALSE)","v":147},-120]
["GoliathTech Inc.",268,{"$f":"VLOOKUP(A269,'2018'!A:B,2,FALSE)","v":210},-58]
["Enviro-Master Int'l. Franchise LLC",269,{"$f":"VLOOKUP(A270,'2018'!A:B,2,FALSE)","v":82},-187]
["Freedom Boat Club",270,{"$f":"VLOOKUP(A271,'2018'!A:B,2,FALSE)","v":309},39]
["Aladdin Doors Franchising Inc.",271,"NEW",{"$error":"#N/A"}]
["Line-X LLC",272,{"$f":"VLOOKUP(A273,'2018'!A:B,2,FALSE)","v":149},-123]
["Tuffy Tire and Auto Service",273,{"$f":"VLOOKUP(A274,'2018'!A:B,2,FALSE)","v":257},-16]
["The Flying Locksmiths",274,{"$f":"VLOOKUP(A275,'2018'!A:B,2,FALSE)","v":125},-149]
["Amada Senior Care",275,{"$f":"VLOOKUP(A276,'2018'!A:B,2,FALSE)","v":245},-30]
["Hot Dog on a Stick",276,{"$f":"VLOOKUP(A277,'2018'!A:B,2,FALSE)","v":432},156]
["Travelodge by Wyndham",277,{"$f":"VLOOKUP(A278,'2018'!A:B,2,FALSE)","v":459},182]
["Golden Krust Franchising Inc.",278,{"$f":"VLOOKUP(A279,'2018'!A:B,2,FALSE)","v":335},57]
["Tint World",279,{"$f":"VLOOKUP(A280,'2018'!A:B,2,FALSE)","v":351},72]
["HomeTeam Inspection Service",280,{"$f":"VLOOKUP(A281,'2018'!A:B,2,FALSE)","v":126},-154]
["Paul Davis Restoration",281,{"$f":"VLOOKUP(A282,'2018'!A:B,2,FALSE)","v":133},-148]
["Jet-Black/Yellow Dawg Striping",282,{"$f":"VLOOKUP(A283,'2018'!A:B,2,FALSE)","v":241},-41]
["The Barre Code",283,"NEW",{"$error":"#N/A"}]
["CertaPro Painters",284,{"$f":"VLOOKUP(A285,'2018'!A:B,2,FALSE)","v":306},22]
["Two Maids & A Mop",285,{"$f":"VLOOKUP(A286,'2018'!A:B,2,FALSE)","v":235},-50]
["The Alternative Board (TAB)",286,{"$f":"VLOOKUP(A287,'2018'!A:B,2,FALSE)","v":234},-52]
["Home Instead Senior Care",287,{"$f":"VLOOKUP(A288,'2018'!A:B,2,FALSE)","v":440},153]
["Lendio Franchising",288,{"$f":"VLOOKUP(A289,'2018'!A:B,2,FALSE)","v":201},-87]
["Kinderdance Int'l. Inc.",289,{"$f":"VLOOKUP(A290,'2018'!A:B,2,FALSE)","v":386},97]
["National Property Inspections Inc.",290,{"$f":"VLOOKUP(A291,'2018'!A:B,2,FALSE)","v":191},-99]
["Mr. Rooter",291,{"$f":"VLOOKUP(A292,'2018'!A:B,2,FALSE)","v":276},-15]
["ASP-America's Swimming Pool Co.",292,{"$f":"VLOOKUP(A293,'2018'!A:B,2,FALSE)","v":101},-191]
["Pizza Factory Inc.",293,{"$f":"VLOOKUP(A294,'2018'!A:B,2,FALSE)","v":337},44]
["Poolwerx",294,{"$f":"VLOOKUP(A295,'2018'!A:B,2,FALSE)","v":183},-111]
["ProSource Wholesale",295,{"$f":"VLOOKUP(A296,'2018'!A:B,2,FALSE)","v":175},-120]
["Shipley Do-Nuts",296,"NEW",{"$error":"#N/A"}]
["F45 Training",297,"NEW",{"$error":"#N/A"}]
["Sanford Rose Associates Int'l. Inc.",298,{"$f":"VLOOKUP(A299,'2018'!A:B,2,FALSE)","v":308},10]
["ampm",299,{"$f":"VLOOKUP(A300,'2018'!A:B,2,FALSE)","v":334},35]
["American Poolplayers Association",300,"NEW",{"$error":"#N/A"}]
["Midas Int'l. Corp.",301,"NEW",{"$error":"#N/A"}]
["101 Mobility",302,{"$f":"VLOOKUP(A303,'2018'!A:B,2,FALSE)","v":134},-168]
["Precision Tune Auto Care",303,{"$f":"VLOOKUP(A304,'2018'!A:B,2,FALSE)","v":292},-11]
["Bio-One Inc.",304,{"$f":"VLOOKUP(A305,'2018'!A:B,2,FALSE)","v":344},40]
["Zips Dry Cleaners",305,{"$f":"VLOOKUP(A306,'2018'!A:B,2,FALSE)","v":135},-170]
["Precision Door Service",306,{"$f":"VLOOKUP(A307,'2018'!A:B,2,FALSE)","v":226},-80]
["Challenge Island",307,{"$f":"VLOOKUP(A308,'2018'!A:B,2,FALSE)","v":428},121]
["Super 8 by Wyndham",308,{"$f":"VLOOKUP(A309,'2018'!A:B,2,FALSE)","v":435},127]
["Pronto Insurance",309,{"$f":"VLOOKUP(A310,'2018'!A:B,2,FALSE)","v":443},134]
["Qdoba Mexican Eats",310,{"$f":"VLOOKUP(A311,'2018'!A:B,2,FALSE)","v":297},-13]
["Hawthorn Suites by Wyndham",311,"NEW",{"$error":"#N/A"}]
["Tutor Doctor",312,{"$f":"VLOOKUP(A313,'2018'!A:B,2,FALSE)","v":158},-154]
["My Salon Suite/Salon Plaza",313,"NEW",{"$error":"#N/A"}]
["USA Insulation",314,{"$f":"VLOOKUP(A315,'2018'!A:B,2,FALSE)","v":328},14]
["First Choice Haircutters",315,{"$f":"VLOOKUP(A316,'2018'!A:B,2,FALSE)","v":317},2]
["Mosquito Squad",316,{"$f":"VLOOKUP(A317,'2018'!A:B,2,FALSE)","v":283},-33]
["Image360",317,{"$f":"VLOOKUP(A318,'2018'!A:B,2,FALSE)","v":310},-7]
["Color Me Mine Enterprises Inc.",318,"NEW",{"$error":"#N/A"}]
["ChemStation",319,{"$f":"VLOOKUP(A320,'2018'!A:B,2,FALSE)","v":256},-63]
["Cost Cutters Family Hair Care",320,{"$f":"VLOOKUP(A321,'2018'!A:B,2,FALSE)","v":385},65]
["The Junkluggers",321,"NEW",{"$error":"#N/A"}]
["Estrella Insurance",322,{"$f":"VLOOKUP(A323,'2018'!A:B,2,FALSE)","v":358},36]
["Totally Nutz",323,"NEW",{"$error":"#N/A"}]
["Maid Brigade",324,{"$f":"VLOOKUP(A325,'2018'!A:B,2,FALSE)","v":347},23]
["Security 101",325,{"$f":"VLOOKUP(A326,'2018'!A:B,2,FALSE)","v":273},-52]
["Chronic Tacos Enterprises Inc.",326,{"$f":"VLOOKUP(A327,'2018'!A:B,2,FALSE)","v":354},28]
["Snap Fitness Inc.",327,{"$f":"VLOOKUP(A328,'2018'!A:B,2,FALSE)","v":348},21]
["Round Table Pizza",328,{"$f":"VLOOKUP(A329,'2018'!A:B,2,FALSE)","v":187},-141]
["Closet Factory",329,{"$f":"VLOOKUP(A330,'2018'!A:B,2,FALSE)","v":180},-149]
["Famous Toastery",330,"NEW",{"$error":"#N/A"}]
["Paisano's Pizza",331,"NEW",{"$error":"#N/A"}]
["Gateway Newstands",332,{"$f":"VLOOKUP(A333,'2018'!A:B,2,FALSE)","v":451},119]
["1-800-Got-Junk?",333,{"$f":"VLOOKUP(A334,'2018'!A:B,2,FALSE)","v":482},149]
["Dippin' Dots Franchising LLC",334,{"$f":"VLOOKUP(A335,'2018'!A:B,2,FALSE)","v":369},35]
["Little Medical School",335,"NEW",{"$error":"#N/A"}]
["Padgett Business Services",336,{"$f":"VLOOKUP(A337,'2018'!A:B,2,FALSE)","v":431},95]
["Ledo Pizza",337,{"$f":"VLOOKUP(A338,'2018'!A:B,2,FALSE)","v":376},39]
["Concrete Raising of America Inc.",338,{"$f":"VLOOKUP(A339,'2018'!A:B,2,FALSE)","v":398},60]
["Remedy Intelligent Staffing LLC",339,"NEW",{"$error":"#N/A"}]
["Elements Massage",340,{"$f":"VLOOKUP(A341,'2018'!A:B,2,FALSE)","v":238},-102]
["D-BAT Academies Inc.",341,{"$f":"VLOOKUP(A342,'2018'!A:B,2,FALSE)","v":311},-30]
["Waxing The City",342,{"$f":"VLOOKUP(A343,'2018'!A:B,2,FALSE)","v":111},-231]
["Erbert & Gerbert's Sandwich Shop",343,{"$f":"VLOOKUP(A344,'2018'!A:B,2,FALSE)","v":312},-31]
["Amazing Lash Studio",344,{"$f":"VLOOKUP(A345,'2018'!A:B,2,FALSE)","v":136},-208]
["Rocky Mountain Chocolate Factory",345,{"$f":"VLOOKUP(A346,'2018'!A:B,2,FALSE)","v":453},108]
["Five Star Bath Solutions",346,"NEW",{"$error":"#N/A"}]
["Arooga's Grille House & Sports Bar",347,{"$f":"VLOOKUP(A348,'2018'!A:B,2,FALSE)","v":488},141]
["Pho Hoa",348,"NEW",{"$error":"#N/A"}]
["Pak Mail",349,{"$f":"VLOOKUP(A350,'2018'!A:B,2,FALSE)","v":282},-67]
["Abrakadoodle",350,"NEW",{"$error":"#N/A"}]
["Deli Delicious",351,{"$f":"VLOOKUP(A352,'2018'!A:B,2,FALSE)","v":417},66]
["LaRosa's Pizzeria",352,{"$f":"VLOOKUP(A353,'2018'!A:B,2,FALSE)","v":412},60]
["Oxi Fresh Franchising Co.",353,{"$f":"VLOOKUP(A354,'2018'!A:B,2,FALSE)","v":275},-78]
["Martinizing",354,{"$f":"VLOOKUP(A355,'2018'!A:B,2,FALSE)","v":450},96]
["Wireless Zone",355,{"$f":"VLOOKUP(A356,'2018'!A:B,2,FALSE)","v":388},33]
["Buffalo Wings & Rings LLC",356,{"$f":"VLOOKUP(A357,'2018'!A:B,2,FALSE)","v":293},-63]
["Relax The Back Corp.",357,{"$f":"VLOOKUP(A358,'2018'!A:B,2,FALSE)","v":365},8]
["Massage Envy",358,{"$f":"VLOOKUP(A359,'2018'!A:B,2,FALSE)","v":45},-313]
["Roosters Men's Grooming Centers",359,{"$f":"VLOOKUP(A360,'2018'!A:B,2,FALSE)","v":420},61]
["Wetzel's Pretzels",360,{"$f":"VLOOKUP(A361,'2018'!A:B,2,FALSE)","v":268},-92]
["Wag N' Wash Natural Food & Bakery",361,{"$f":"VLOOKUP(A362,'2018'!A:B,2,FALSE)","v":465},104]
["The Tutoring Center Franchise Corp.",362,{"$f":"VLOOKUP(A363,'2018'!A:B,2,FALSE)","v":220},-142]
["AtWork Group",363,{"$f":"VLOOKUP(A364,'2018'!A:B,2,FALSE)","v":88},-275]
["Creative World School Franchising Co. Inc.",364,{"$f":"VLOOKUP(A365,'2018'!A:B,2,FALSE)","v":396},32]
["Office Pride Commercial Cleaning Services",365,{"$f":"VLOOKUP(A366,'2018'!A:B,2,FALSE)","v":410},45]
["Romp n' Roll",366,"NEW",{"$error":"#N/A"}]
["Zerorez Franchising Systems Inc.",367,{"$f":"VLOOKUP(A368,'2018'!A:B,2,FALSE)","v":349},-18]
["Pita Pit Inc.",368,{"$f":"VLOOKUP(A369,'2018'!A:B,2,FALSE)","v":342},-26]
["HobbyTown",369,{"$f":"VLOOKUP(A370,'2018'!A:B,2,FALSE)","v":419},50]
["Tutu School",370,{"$f":"VLOOKUP(A371,'2018'!A:B,2,FALSE)","v":298},-72]
["ApexNetwork Physical Therapy",371,{"$f":"VLOOKUP(A372,'2018'!A:B,2,FALSE)","v":456},85]
["Gloria Jean's Coffees",372,{"$f":"VLOOKUP(A373,'2018'!A:B,2,FALSE)","v":274},-98]
["Multivista",373,{"$f":"VLOOKUP(A374,'2018'!A:B,2,FALSE)","v":252},-121]
["Assisted Living Locators",374,{"$f":"VLOOKUP(A375,'2018'!A:B,2,FALSE)","v":360},-14]
["Foliage Design Systems",375,{"$f":"VLOOKUP(A376,'2018'!A:B,2,FALSE)","v":361},-14]
["Crown Trophy Inc.",376,{"$f":"VLOOKUP(A377,'2018'!A:B,2,FALSE)","v":324},-52]
["TSS Photography",377,{"$f":"VLOOKUP(A378,'2018'!A:B,2,FALSE)","v":270},-107]
["Champs Chicken",378,{"$f":"VLOOKUP(A379,'2018'!A:B,2,FALSE)","v":281},-97]
["The Greene Turtle Sports Bar & Grille",379,{"$f":"VLOOKUP(A380,'2018'!A:B,2,FALSE)","v":277},-102]
["Mainstream Boutique",380,{"$f":"VLOOKUP(A381,'2018'!A:B,2,FALSE)","v":155},-225]
["Play It Again Sports",381,{"$f":"VLOOKUP(A382,'2018'!A:B,2,FALSE)","v":247},-134]
["HouseMaster",382,{"$f":"VLOOKUP(A383,'2018'!A:B,2,FALSE)","v":280},-102]
["Kampgrounds of America Inc.",383,{"$f":"VLOOKUP(A384,'2018'!A:B,2,FALSE)","v":366},-17]
["Microtel by Wyndham",384,"NEW",{"$error":"#N/A"}]
["Aire-Master of America Inc.",385,{"$f":"VLOOKUP(A386,'2018'!A:B,2,FALSE)","v":367},-18]
["Sir Speedy Print Signs Marketing",386,{"$f":"VLOOKUP(A387,'2018'!A:B,2,FALSE)","v":355},-31]
["Duraclean",387,{"$f":"VLOOKUP(A388,'2018'!A:B,2,FALSE)","v":380},-7]
["Metal Supermarkets",388,{"$f":"VLOOKUP(A389,'2018'!A:B,2,FALSE)","v":307},-81]
["Link Staffing Services",389,"NEW",{"$error":"#N/A"}]
["ActionCoach",390,"NEW",{"$error":"#N/A"}]
["Rock & Brews Franchising LLC",391,{"$f":"VLOOKUP(A392,'2018'!A:B,2,FALSE)","v":285},-106]
["The Spice & Tea Exchange",392,{"$f":"VLOOKUP(A393,'2018'!A:B,2,FALSE)","v":279},-113]
["Kitchen Tune-Up",393,{"$f":"VLOOKUP(A394,'2018'!A:B,2,FALSE)","v":271},-122]
["Liberty Tax Service",394,{"$f":"VLOOKUP(A395,'2018'!A:B,2,FALSE)","v":485},91]
["Mister Sparky",395,"NEW",{"$error":"#N/A"}]
["Hospitality Int'l. Inc.",396,"NEW",{"$error":"#N/A"}]
["JEI Learning Center",397,{"$f":"VLOOKUP(A398,'2018'!A:B,2,FALSE)","v":322},-75]
["Wyndham",398,"NEW",{"$error":"#N/A"}]
["Native Grill & Wings Franchising LLC",399,{"$f":"VLOOKUP(A400,'2018'!A:B,2,FALSE)","v":295},-104]
["Zoup! Systems LLC",400,{"$f":"VLOOKUP(A401,'2018'!A:B,2,FALSE)","v":327},-73]
["California Tortilla",401,"NEW",{"$error":"#N/A"}]
["Retro Fitness",402,{"$f":"VLOOKUP(A403,'2018'!A:B,2,FALSE)","v":290},-112]
["Oxxo Care Cleaners",403,{"$f":"VLOOKUP(A404,'2018'!A:B,2,FALSE)","v":411},8]
["Senior Care Authority",404,"NEW",{"$error":"#N/A"}]
["Hwy 55 Burgers, Shakes & Fries",405,{"$f":"VLOOKUP(A406,'2018'!A:B,2,FALSE)","v":383},-22]
["Acti-Kare Inc.",406,{"$f":"VLOOKUP(A407,'2018'!A:B,2,FALSE)","v":408},2]
["SuperGlass Windshield Repair",407,{"$f":"VLOOKUP(A408,'2018'!A:B,2,FALSE)","v":402},-5]
["Benjamin Franklin Plumbing",408,"NEW",{"$error":"#N/A"}]
["System4 Facility Services",409,{"$f":"VLOOKUP(A410,'2018'!A:B,2,FALSE)","v":294},-115]
["InXpress",410,"NEW",{"$error":"#N/A"}]
["Sylvan Learning LLC",411,"NEW",{"$error":"#N/A"}]
["Mighty Auto Parts",412,{"$f":"VLOOKUP(A413,'2018'!A:B,2,FALSE)","v":345},-67]
["Link Business",413,"NEW",{"$error":"#N/A"}]
["Allegra Marketing-Print-Mail",414,{"$f":"VLOOKUP(A415,'2018'!A:B,2,FALSE)","v":400},-14]
["STEM For Kids",415,"NEW",{"$error":"#N/A"}]
["Beef O'Brady's Family Sports Pub",416,"NEW",{"$error":"#N/A"}]
["velofix Group of Companies",417,{"$f":"VLOOKUP(A418,'2018'!A:B,2,FALSE)","v":106},-311]
["Milex Complete Auto Care/Mr. Transmission",418,{"$f":"VLOOKUP(A419,'2018'!A:B,2,FALSE)","v":493},75]
["Crestcom Int'l. LLC",419,"NEW",{"$error":"#N/A"}]
["Mr. Electric",420,"NEW",{"$error":"#N/A"}]
["Ben's Soft Pretzels",421,{"$f":"VLOOKUP(A422,'2018'!A:B,2,FALSE)","v":379},-42]
["Home Care Assistance",422,{"$f":"VLOOKUP(A423,'2018'!A:B,2,FALSE)","v":305},-117]
["Any Lab Test Now",423,{"$f":"VLOOKUP(A424,'2018'!A:B,2,FALSE)","v":352},-71]
["Burn Boot Camp",424,"NEW",{"$error":"#N/A"}]
["Pinch A Penny Pool, Patio & Spa",425,"NEW",{"$error":"#N/A"}]
["Days Inn by Wyndham",426,"NEW",{"$error":"#N/A"}]
["Tubby's Sub Shop Inc.",427,{"$f":"VLOOKUP(A428,'2018'!A:B,2,FALSE)","v":477},50]
["Our Town America",428,{"$f":"VLOOKUP(A429,'2018'!A:B,2,FALSE)","v":320},-108]
["Assisting Hands Home Care",429,{"$f":"VLOOKUP(A430,'2018'!A:B,2,FALSE)","v":164},-265]
["Mr. Appliance LLC",430,{"$f":"VLOOKUP(A431,'2018'!A:B,2,FALSE)","v":438},8]
["Closets By Design Franchising",431,{"$f":"VLOOKUP(A432,'2018'!A:B,2,FALSE)","v":437},6]
["Expedia CruiseShipCenters",432,{"$f":"VLOOKUP(A433,'2018'!A:B,2,FALSE)","v":464},32]
["PIP Marketing, Signs, Print",433,{"$f":"VLOOKUP(A434,'2018'!A:B,2,FALSE)","v":390},-43]
["Tailored Living LLC",434,{"$f":"VLOOKUP(A435,'2018'!A:B,2,FALSE)","v":131},-303]
["Fantastic Sams Cut & Color",435,{"$f":"VLOOKUP(A436,'2018'!A:B,2,FALSE)","v":418},-17]
["The Lost Cajun",436,"NEW",{"$error":"#N/A"}]
["Touching Hearts At Home",437,"NEW",{"$error":"#N/A"}]
["GradePower Learning",438,"NEW",{"$error":"#N/A"}]
["BurgerFi",439,"NEW",{"$error":"#N/A"}]
["RSVP Publications",440,"NEW",{"$error":"#N/A"}]
["Mr. Goodcents Franchise Systems Inc.",441,{"$f":"VLOOKUP(A442,'2018'!A:B,2,FALSE)","v":391},-50]
["iLoveKickboxing.com",442,{"$f":"VLOOKUP(A443,'2018'!A:B,2,FALSE)","v":425},-17]
["Good Feet Worldwide LLC",443,{"$f":"VLOOKUP(A444,'2018'!A:B,2,FALSE)","v":423},-20]
["Parker-Anderson Enrichment",444,"NEW",{"$error":"#N/A"}]
["N2 Publishing",445,"NEW",{"$error":"#N/A"}]
["Fast-Fix Jewelry & Watch Repairs",446,"NEW",{"$error":"#N/A"}]
["PostNet Neighborhood Business Centers",447,{"$f":"VLOOKUP(A448,'2018'!A:B,2,FALSE)","v":221},-226]
["CKO Kickboxing",448,{"$f":"VLOOKUP(A449,'2018'!A:B,2,FALSE)","v":413},-35]
["ACFN-The ATM Franchise Business",449,{"$f":"VLOOKUP(A450,'2018'!A:B,2,FALSE)","v":474},25]
["Merle Norman Cosmetics",450,{"$f":"VLOOKUP(A451,'2018'!A:B,2,FALSE)","v":421},-29]
["Groucho's Deli",451,"NEW",{"$error":"#N/A"}]
["All County Property Management Franchise Corp.",452,"NEW",{"$error":"#N/A"}]
["Glass Doctor",453,{"$f":"VLOOKUP(A454,'2018'!A:B,2,FALSE)","v":179},-274]
["Discovery Map Int'l. Inc.",454,"NEW",{"$error":"#N/A"}]
["Bricks & Minifigs",455,"NEW",{"$error":"#N/A"}]
["EarthWise Pet",456,{"$f":"VLOOKUP(A457,'2018'!A:B,2,FALSE)","v":377},-79]
["Cousins Subs",457,{"$f":"VLOOKUP(A458,'2018'!A:B,2,FALSE)","v":404},-53]
["The Camp Transformation Center",458,"NEW",{"$error":"#N/A"}]
["InterContinental Hotels & Resorts",459,{"$f":"VLOOKUP(A460,'2018'!A:B,2,FALSE)","v":405},-54]
["Scooter's Coffee",460,{"$f":"VLOOKUP(A461,'2018'!A:B,2,FALSE)","v":414},-46]
["Fleet Clean USA",461,"NEW",{"$error":"#N/A"}]
["Go Mini's Franchising LLC",462,{"$f":"VLOOKUP(A463,'2018'!A:B,2,FALSE)","v":415},-47]
["Learning Express Toys",463,{"$f":"VLOOKUP(A464,'2018'!A:B,2,FALSE)","v":392},-71]
["Boston's Restaurant & Sports Bar",464,"NEW",{"$error":"#N/A"}]
["Teriyaki Madness",465,{"$f":"VLOOKUP(A466,'2018'!A:B,2,FALSE)","v":490},25]
["Executive Home Care",466,{"$f":"VLOOKUP(A467,'2018'!A:B,2,FALSE)","v":264},-202]
["Big Frog Custom T-Shirts Inc.",467,{"$f":"VLOOKUP(A468,'2018'!A:B,2,FALSE)","v":225},-242]
["Jackson Hewitt Tax Service",468,"NEW",{"$error":"#N/A"}]
["Apex Leadership Co.",469,{"$f":"VLOOKUP(A470,'2018'!A:B,2,FALSE)","v":263},-206]
["i9 Sports",470,"NEW",{"$error":"#N/A"}]
["Wine & Design",471,"NEW",{"$error":"#N/A"}]
["Fastest Labs",472,{"$f":"VLOOKUP(A473,'2018'!A:B,2,FALSE)","v":497},25]
["SpeeDee Oil Change & Auto Service Center",473,"NEW",{"$error":"#N/A"}]
["Wayback Burgers",474,{"$f":"VLOOKUP(A475,'2018'!A:B,2,FALSE)","v":463},-11]
["Club Z! In-Home Tutoring Services",475,"NEW",{"$error":"#N/A"}]
["TGA Premier Youth Tennis",476,{"$f":"VLOOKUP(A477,'2018'!A:B,2,FALSE)","v":403},-73]
["SpeedPro Imaging",477,{"$f":"VLOOKUP(A478,'2018'!A:B,2,FALSE)","v":399},-78]
["Aussie Pet Mobile Inc.",478,{"$f":"VLOOKUP(A479,'2018'!A:B,2,FALSE)","v":359},-119]
["Studio 6",479,{"$f":"VLOOKUP(A480,'2018'!A:B,2,FALSE)","v":460},-19]
["Fully Promoted",480,{"$f":"VLOOKUP(A481,'2018'!A:B,2,FALSE)","v":329},-151]
["Caring Senior Service",481,{"$f":"VLOOKUP(A482,'2018'!A:B,2,FALSE)","v":323},-158]
["Cinnaholic Franchising",482,"NEW",{"$error":"#N/A"}]
["Computer Troubleshooters",483,{"$f":"VLOOKUP(A484,'2018'!A:B,2,FALSE)","v":498},15]
["HomeWell Senior Care",484,{"$f":"VLOOKUP(A485,'2018'!A:B,2,FALSE)","v":300},-184]
["MassageLuXe",485,{"$f":"VLOOKUP(A486,'2018'!A:B,2,FALSE)","v":370},-115]
["Newk's Eatery",486,"NEW",{"$error":"#N/A"}]
["Style Encore",487,{"$f":"VLOOKUP(A488,'2018'!A:B,2,FALSE)","v":196},-291]
["Meineke Car Care Centers",488,"NEW",{"$error":"#N/A"}]
["Help-U-Sell Real Estate",489,"NEW",{"$error":"#N/A"}]
["Town Money Saver",490,{"$f":"VLOOKUP(A491,'2018'!A:B,2,FALSE)","v":475},-15]
["Real Property Management",491,{"$f":"VLOOKUP(A492,'2018'!A:B,2,FALSE)","v":436},-55]
["CycleBar",492,"NEW",{"$error":"#N/A"}]
["JDog Junk Removal & Hauling",493,"NEW",{"$error":"#N/A"}]
["Mr. Handyman Int'l. LLC",494,{"$f":"VLOOKUP(A495,'2018'!A:B,2,FALSE)","v":371},-123]
["Five Star Painting",495,{"$f":"VLOOKUP(A496,'2018'!A:B,2,FALSE)","v":457},-38]
["Expense Reduction Analysts",496,{"$f":"VLOOKUP(A497,'2018'!A:B,2,FALSE)","v":318},-178]
["Lice Clinics of America",497,"NEW",{"$error":"#N/A"}]
["Bubbakoo's Burritos",498,"NEW",{"$error":"#N/A"}]
["Venture X",499,"NEW",{"$error":"#N/A"}]
["Title Boxing Club",500,"NEW",{"$error":"#N/A"}]

{"sheet":"2018","index":1,"n_rows":501,"n_cols":3,"rows_kept":501,"cut":false,"hidden":false,"merged":[]}
["Franchise","2018 Rankings","2019 Rankings"]
["Wingstop Restaurants Inc.",31,{"$f":"VLOOKUP(A2,'2019'!A:A,1,FALSE)","v":{"$error":"#N/A"}}]
["Denny's Inc.",76,{"$f":"VLOOKUP(A3,'2019'!A:A,1,FALSE)","v":{"$error":"#N/A"}}]
["Ikor Int'l. LLC",86,{"$f":"VLOOKUP(A4,'2019'!A:A,1,FALSE)","v":{"$error":"#N/A"}}]
["Valpak Direct Marketing Systems Inc.",128,{"$f":"VLOOKUP(A5,'2019'!A:A,1,FALSE)","v":{"$error":"#N/A"}}]
["AdvantaClean",148,{"$f":"VLOOKUP(A6,'2019'!A:A,1,FALSE)","v":{"$error":"#N/A"}}]
["1-800 Water Damage",161,{"$f":"VLOOKUP(A7,'2019'!A:A,1,FALSE)","v":{"$error":"#N/A"}}]
["Rockin' Jump",165,{"$f":"VLOOKUP(A8,'2019'!A:A,1,FALSE)","v":{"$error":"#N/A"}}]
["la Madeleine French Bakery & Cafe",167,{"$f":"VLOOKUP(A9,'2019'!A:A,1,FALSE)","v":{"$error":"#N/A"}}]
["Dickey's Barbecue Pit",170,{"$f":"VLOOKUP(A10,'2019'!A:A,1,FALSE)","v":{"$error":"#N/A"}}]
["Jantize America",184,{"$f":"VLOOKUP(A11,'2019'!A:A,1,FALSE)","v":{"$error":"#N/A"}}]
["Buddy's Home Furnishings",190,{"$f":"VLOOKUP(A12,'2019'!A:A,1,FALSE)","v":{"$error":"#N/A"}}]
["Slumberland Franchising Inc.",200,{"$f":"VLOOKUP(A13,'2019'!A:A,1,FALSE)","v":{"$error":"#N/A"}}]
["Farmer Boys Restaurants",206,{"$f":"VLOOKUP(A14,'2019'!A:A,1,FALSE)","v":{"$error":"#N/A"}}]
["milliCare",215,{"$f":"VLOOKUP(A15,'2019'!A:A,1,FALSE)","v":{"$error":"#N/A"}}]
["Bahama Buck's",232,{"$f":"VLOOKUP(A16,'2019'!A:A,1,FALSE)","v":{"$error":"#N/A"}}]
["Best in Class Education Center",248,{"$f":"VLOOKUP(A17,'2019'!A:A,1,FALSE)","v":{"$error":"#N/A"}}]
["Handyman Connection",253,{"$f":"VLOOKUP(A18,'2019'!A:A,1,FALSE)","v":{"$error":"#N/A"}}]
["Seva Beauty",262,{"$f":"VLOOKUP(A19,'2019'!A:A,1,FALSE)","v":{"$error":"#N/A"}}]
["ARCpoint Labs",272,{"$f":"VLOOKUP(A20,'2019'!A:A,1,FALSE)","v":{"$error":"#N/A"}}]
["Boulder Designs",296,{"$f":"VLOOKUP(A21,'2019'!A:A,1,FALSE)","v":{"$error":"#N/A"}}]
["SwimLabs Swim School",301,{"$f":"VLOOKUP(A22,'2019'!A:A,1,FALSE)","v":{"$error":"#N/A"}}]
["Window Genie",302,{"$f":"VLOOKUP(A23,'2019'!A:A,1,FALSE)","v":{"$error":"#N/A"}}]
["Villa Italian Kitchen",316,{"$f":"VLOOKUP(A24,'2019'!A:A,1,FALSE)","v":{"$error":"#N/A"}}]
["Honest-1 Auto Care LLC",319,{"$f":"VLOOKUP(A25,'2019'!A:A,1,FALSE)","v":{"$error":"#N/A"}}]
["Eggs Up Grill",321,{"$f":"VLOOKUP(A26,'2019'!A:A,1,FALSE)","v":{"$error":"#N/A"}}]
["The Entrepreneur's Source",333,{"$f":"VLOOKUP(A27,'2019'!A:A,1,FALSE)","v":{"$error":"#N/A"}}]
["Sit Means Sit Dog Training",340,{"$f":"VLOOKUP(A28,'2019'!A:A,1,FALSE)","v":{"$error":"#N/A"}}]
["Digital Doc",343,{"$f":"VLOOKUP(A29,'2019'!A:A,1,FALSE)","v":{"$error":"#N/A"}}]
["ComForCare Home Care",346,{"$f":"VLOOKUP(A30,'2019'!A:A,1,FALSE)","v":{"$error":"#N/A"}}]
["Nutty Scientists",353,{"$f":"VLOOKUP(A31,'2019'!A:A,1,FALSE)","v":{"$error":"#N/A"}}]
["Storm Guard Roofing & Construction",356,{"$f":"VLOOKUP(A32,'2019'!A:A,1,FALSE)","v":{"$error":"#N/A"}}]
["Paul Davis Emergency Services",362,{"$f":"VLOOKUP(A33,'2019'!A:A,1,FALSE)","v":{"$error":"#N/A"}}]
["Money Mailer Franchise Corp.",364,{"$f":"VLOOKUP(A34,'2019'!A:A,1,FALSE)","v":{"$error":"#N/A"}}]
["HappyFeet Legends Int'l.",368,{"$f":"VLOOKUP(A35,'2019'!A:A,1,FALSE)","v":{"$error":"#N/A"}}]
["Juice It Up!",373,{"$f":"VLOOKUP(A36,'2019'!A:A,1,FALSE)","v":{"$error":"#N/A"}}]
["The Cleaning Authority",374,{"$f":"VLOOKUP(A37,'2019'!A:A,1,FALSE)","v":{"$error":"#N/A"}}]
["Red Lion Hotels",375,{"$f":"VLOOKUP(A38,'2019'!A:A,1,FALSE)","v":{"$error":"#N/A"}}]
["Relocation Strategies",381,{"$f":"VLOOKUP(A39,'2019'!A:A,1,FALSE)","v":{"$error":"#N/A"}}]
["Lapels",382,{"$f":"VLOOKUP(A40,'2019'!A:A,1,FALSE)","v":{"$error":"#N/A"}}]
["Fox's Pizza Den",387,{"$f":"VLOOKUP(A41,'2019'!A:A,1,FALSE)","v":{"$error":"#N/A"}}]
["Handyman Matters Franchise Inc.",393,{"$f":"VLOOKUP(A42,'2019'!A:A,1,FALSE)","v":{"$error":"#N/A"}}]
["WIN Home Inspection",395,{"$f":"VLOOKUP(A43,'2019'!A:A,1,FALSE)","v":{"$error":"#N/A"}}]
["UFC Gym",397,{"$f":"VLOOKUP(A44,'2019'!A:A,1,FALSE)","v":{"$error":"#N/A"}}]
["Marble Slab Creamery",401,{"$f":"VLOOKUP(A45,'2019'!A:A,1,FALSE)","v":{"$error":"#N/A"}}]
["Biggby Coffee",406,{"$f":"VLOOKUP(A46,'2019'!A:A,1,FALSE)","v":{"$error":"#N/A"}}]
["The Flame Broiler Inc.",407,{"$f":"VLOOKUP(A47,'2019'!A:A,1,FALSE)","v":{"$error":"#N/A"}}]
["Zippy Shell Moving and Storage",422,{"$f":"VLOOKUP(A48,'2019'!A:A,1,FALSE)","v":{"$error":"#N/A"}}]
["Realty Executives Intl. Svcs. LLC",424,{"$f":"VLOOKUP(A49,'2019'!A:A,1,FALSE)","v":{"$error":"#N/A"}}]
["AIM Mail Centers",426,{"$f":"VLOOKUP(A50,'2019'!A:A,1,FALSE)","v":{"$error":"#N/A"}}]
["Parcel Plus",427,{"$f":"VLOOKUP(A51,'2019'!A:A,1,FALSE)","v":{"$error":"#N/A"}}]
["Complete Weddings + Events",429,{"$f":"VLOOKUP(A52,'2019'!A:A,1,FALSE)","v":{"$error":"#N/A"}}]
["Snip-Its",430,{"$f":"VLOOKUP(A53,'2019'!A:A,1,FALSE)","v":{"$error":"#N/A"}}]
["Christmas Decor",433,{"$f":"VLOOKUP(A54,'2019'!A:A,1,FALSE)","v":{"$error":"#N/A"}}]
["Colors On Parade",434,{"$f":"VLOOKUP(A55,'2019'!A:A,1,FALSE)","v":{"$error":"#N/A"}}]
["Outdoor Lighting Perspectives",439,{"$f":"VLOOKUP(A56,'2019'!A:A,1,FALSE)","v":{"$error":"#N/A"}}]
["Preferred Care at Home",441,{"$f":"VLOOKUP(A57,'2019'!A:A,1,FALSE)","v":{"$error":"#N/A"}}]
["Dunn Brothers Coffee",442,{"$f":"VLOOKUP(A58,'2019'!A:A,1,FALSE)","v":{"$error":"#N/A"}}]
["The Glass Guru",445,{"$f":"VLOOKUP(A59,'2019'!A:A,1,FALSE)","v":{"$error":"#N/A"}}]
["Papa Murphy's Take 'N' Bake Pizza",446,{"$f":"VLOOKUP(A60,'2019'!A:A,1,FALSE)","v":{"$error":"#N/A"}}]
["Copper Penny",447,{"$f":"VLOOKUP(A61,'2019'!A:A,1,FALSE)","v":{"$error":"#N/A"}}]
["Junk King",448,{"$f":"VLOOKUP(A62,'2019'!A:A,1,FALSE)","v":{"$error":"#N/A"}}]
["Caring Transitions",449,{"$f":"VLOOKUP(A63,'2019'!A:A,1,FALSE)","v":{"$error":"#N/A"}}]
["Sparkle Wash Int'l.",452,{"$f":"VLOOKUP(A64,'2019'!A:A,1,FALSE)","v":{"$error":"#N/A"}}]
["U.S. Lawns",454,{"$f":"VLOOKUP(A65,'2019'!A:A,1,FALSE)","v":{"$error":"#N/A"}}]
["Murphy Business & Financial Corp. LLC",458,{"$f":"VLOOKUP(A66,'2019'!A:A,1,FALSE)","v":{"$error":"#N/A"}}]
["J.D. Byrider",461,{"$f":"VLOOKUP(A67,'2019'!A:A,1,FALSE)","v":{"$error":"#N/A"}}]
["Happy Tax Franchising",462,{"$f":"VLOOKUP(A68,'2019'!A:A,1,FALSE)","v":{"$error":"#N/A"}}]
["Supporting Strategies",466,{"$f":"VLOOKUP(A69,'2019'!A:A,1,FALSE)","v":{"$error":"#N/A"}}]
["Sir Grout Franchising",467,{"$f":"VLOOKUP(A70,'2019'!A:A,1,FALSE)","v":{"$error":"#N/A"}}]
["Cottage Inn Pizza",468,{"$f":"VLOOKUP(A71,'2019'!A:A,1,FALSE)","v":{"$error":"#N/A"}}]
["Yogurtland Franchising Inc.",469,{"$f":"VLOOKUP(A72,'2019'!A:A,1,FALSE)","v":{"$error":"#N/A"}}]
["United Real Estate",471,{"$f":"VLOOKUP(A73,'2019'!A:A,1,FALSE)","v":{"$error":"#N/A"}}]
["Welcomemat Services",472,{"$f":"VLOOKUP(A74,'2019'!A:A,1,FALSE)","v":{"$error":"#N/A"}}]
["Maid Right Franchising LLC",473,{"$f":"VLOOKUP(A75,'2019'!A:A,1,FALSE)","v":{"$error":"#N/A"}}]
["Crowne Plaza Hotels & Resorts",476,{"$f":"VLOOKUP(A76,'2019'!A:A,1,FALSE)","v":{"$error":"#N/A"}}]
["The Grounds Guys LLC",478,{"$f":"VLOOKUP(A77,'2019'!A:A,1,FALSE)","v":{"$error":"#N/A"}}]
["Amramp",479,{"$f":"VLOOKUP(A78,'2019'!A:A,1,FALSE)","v":{"$error":"#N/A"}}]
["LeafSpring Schools",480,{"$f":"VLOOKUP(A79,'2019'!A:A,1,FALSE)","v":{"$error":"#N/A"}}]
["Parisi Speed School",481,{"$f":"VLOOKUP(A80,'2019'!A:A,1,FALSE)","v":{"$error":"#N/A"}}]
["Massage Heights",483,{"$f":"VLOOKUP(A81,'2019'!A:A,1,FALSE)","v":{"$error":"#N/A"}}]
["Archadeck Outdoor Living",484,{"$f":"VLOOKUP(A82,'2019'!A:A,1,FALSE)","v":{"$error":"#N/A"}}]
["Fortune Personnel Consultants (FPC)",486,{"$f":"VLOOKUP(A83,'2019'!A:A,1,FALSE)","v":{"$error":"#N/A"}}]
["Dental Fix RX LLC",487,{"$f":"VLOOKUP(A84,'2019'!A:A,1,FALSE)","v":{"$error":"#N/A"}}]
["Young Rembrandts Franchise Inc.",489,{"$f":"VLOOKUP(A85,'2019'!A:A,1,FALSE)","v":{"$error":"#N/A"}}]
["Clothes Mentor",491,{"$f":"VLOOKUP(A86,'2019'!A:A,1,FALSE)","v":{"$error":"#N/A"}}]
["The Woodhouse Spas",492,{"$f":"VLOOKUP(A87,'2019'!A:A,1,FALSE)","v":{"$error":"#N/A"}}]
["Medi-Weightloss Franchising USA LLC",494,{"$f":"VLOOKUP(A88,'2019'!A:A,1,FALSE)","v":{"$error":"#N/A"}}]
["GarageExperts",495,{"$f":"VLOOKUP(A89,'2019'!A:A,1,FALSE)","v":{"$error":"#N/A"}}]
["Engineering for Kids",496,{"$f":"VLOOKUP(A90,'2019'!A:A,1,FALSE)","v":{"$error":"#N/A"}}]
["Mr. Sandless/Dr. DecknFence",499,{"$f":"VLOOKUP(A91,'2019'!A:A,1,FALSE)","v":{"$error":"#N/A"}}]
["Aire Serv LLC",500,{"$f":"VLOOKUP(A92,'2019'!A:A,1,FALSE)","v":{"$error":"#N/A"}}]
["Zoup! Systems LLC",327,{"$f":"VLOOKUP(A93,'2019'!A:A,1,FALSE)","v":"Zoup! Systems LLC"}]
["Zips Dry Cleaners",135,{"$f":"VLOOKUP(A94,'2019'!A:A,1,FALSE)","v":"Zips Dry Cleaners"}]
["Ziebart",151,{"$f":"VLOOKUP(A95,'2019'!A:A,1,FALSE)","v":"Ziebart"}]
["Zerorez Franchising Systems Inc.",349,{"$f":"VLOOKUP(A96,'2019'!A:A,1,FALSE)","v":"Zerorez Franchising Systems Inc."}]
["Yogi Bear's Jellystone Park Camp-Resorts",265,{"$f":"VLOOKUP(A97,'2019'!A:A,1,FALSE)","v":"Yogi Bear's Jellystone Park Camp-Resorts"}]
["YESCO Sign & Lighting Service",143,{"$f":"VLOOKUP(A98,'2019'!A:A,1,FALSE)","v":"YESCO Sign & Lighting Service"}]
["Workout Anytime 24/7",394,{"$f":"VLOOKUP(A99,'2019'!A:A,1,FALSE)","v":"Workout Anytime 24/7"}]
["Wireless Zone",388,{"$f":"VLOOKUP(A100,'2019'!A:A,1,FALSE)","v":"Wireless Zone"}]
["Window Gang",338,{"$f":"VLOOKUP(A101,'2019'!A:A,1,FALSE)","v":"Window Gang"}]
["Wild Birds Unlimited",218,{"$f":"VLOOKUP(A102,'2019'!A:A,1,FALSE)","v":"Wild Birds Unlimited"}]
["Wienerschnitzel",166,{"$f":"VLOOKUP(A103,'2019'!A:A,1,FALSE)","v":"Wienerschnitzel"}]
["Which Wich Superior Sandwiches",204,{"$f":"VLOOKUP(A104,'2019'!A:A,1,FALSE)","v":"Which Wich Superior Sandwiches"}]
["Wetzel's Pretzels",268,{"$f":"VLOOKUP(A105,'2019'!A:A,1,FALSE)","v":"Wetzel's Pretzels"}]
["Weichert Real Estate Affiliates Inc.",139,{"$f":"VLOOKUP(A106,'2019'!A:A,1,FALSE)","v":"Weichert Real Estate Affiliates Inc."}]
["Weed Man",59,{"$f":"VLOOKUP(A107,'2019'!A:A,1,FALSE)","v":"Weed Man"}]
["Wayback Burgers",463,{"$f":"VLOOKUP(A108,'2019'!A:A,1,FALSE)","v":"Wayback Burgers"}]
["Waxing The City",111,{"$f":"VLOOKUP(A109,'2019'!A:A,1,FALSE)","v":"Waxing The City"}]
["Watermill Express Franchising",244,{"$f":"VLOOKUP(A110,'2019'!A:A,1,FALSE)","v":"Watermill Express Franchising"}]
["Wag N' Wash Natural Food & Bakery",465,{"$f":"VLOOKUP(A111,'2019'!A:A,1,FALSE)","v":"Wag N' Wash Natural Food & Bakery"}]
["Visiting Angels",74,{"$f":"VLOOKUP(A112,'2019'!A:A,1,FALSE)","v":"Visiting Angels"}]
["velofix Group of Companies",106,{"$f":"VLOOKUP(A113,'2019'!A:A,1,FALSE)","v":"velofix Group of Companies"}]
["Vanguard Cleaning Systems",84,{"$f":"VLOOKUP(A114,'2019'!A:A,1,FALSE)","v":"Vanguard Cleaning Systems"}]
["Valvoline Instant Oil Change",34,{"$f":"VLOOKUP(A115,'2019'!A:A,1,FALSE)","v":"Valvoline Instant Oil Change"}]
["USA Insulation",328,{"$f":"VLOOKUP(A116,'2019'!A:A,1,FALSE)","v":"USA Insulation"}]
["Uptown Cheapskate",288,{"$f":"VLOOKUP(A117,'2019'!A:A,1,FALSE)","v":"Uptown Cheapskate"}]
["uBreakiFix",18,{"$f":"VLOOKUP(A118,'2019'!A:A,1,FALSE)","v":"uBreakiFix"}]
["Two Men and a Truck Int'l. Inc.",87,{"$f":"VLOOKUP(A119,'2019'!A:A,1,FALSE)","v":"Two Men and a Truck Int'l. Inc."}]
["Two Maids & A Mop",235,{"$f":"VLOOKUP(A120,'2019'!A:A,1,FALSE)","v":"Two Maids & A Mop"}]
["Tutu School",298,{"$f":"VLOOKUP(A121,'2019'!A:A,1,FALSE)","v":"Tutu School"}]
["Tutor Doctor",158,{"$f":"VLOOKUP(A122,'2019'!A:A,1,FALSE)","v":"Tutor Doctor"}]
["Tuffy Tire and Auto Service",257,{"$f":"VLOOKUP(A123,'2019'!A:A,1,FALSE)","v":"Tuffy Tire and Auto Service"}]
["Tubby's Sub Shop Inc.",477,{"$f":"VLOOKUP(A124,'2019'!A:A,1,FALSE)","v":"Tubby's Sub Shop Inc."}]
["TSS Photography",270,{"$f":"VLOOKUP(A125,'2019'!A:A,1,FALSE)","v":"TSS Photography"}]
["Tropical Smoothie Cafe",71,{"$f":"VLOOKUP(A126,'2019'!A:A,1,FALSE)","v":"Tropical Smoothie Cafe"}]
["Travelodge by Wyndham",459,{"$f":"VLOOKUP(A127,'2019'!A:A,1,FALSE)","v":"Travelodge by Wyndham"}]
["Transworld Business Advisors",291,{"$f":"VLOOKUP(A128,'2019'!A:A,1,FALSE)","v":"Transworld Business Advisors"}]
["Town Money Saver",475,{"$f":"VLOOKUP(A129,'2019'!A:A,1,FALSE)","v":"Town Money Saver"}]
["Togo's",330,{"$f":"VLOOKUP(A130,'2019'!A:A,1,FALSE)","v":"Togo's"}]
["Tint World",351,{"$f":"VLOOKUP(A131,'2019'!A:A,1,FALSE)","v":"Tint World"}]
["Tide Dry Cleaners",251,{"$f":"VLOOKUP(A132,'2019'!A:A,1,FALSE)","v":"Tide Dry Cleaners"}]
["The UPS Store",4,{"$f":"VLOOKUP(A133,'2019'!A:A,1,FALSE)","v":"The UPS Store"}]
["The Tutoring Center Franchise Corp.",220,{"$f":"VLOOKUP(A134,'2019'!A:A,1,FALSE)","v":"The Tutoring Center Franchise Corp."}]
["The Spice & Tea Exchange",279,{"$f":"VLOOKUP(A135,'2019'!A:A,1,FALSE)","v":"The Spice & Tea Exchange"}]
["The Screenmobile",331,{"$f":"VLOOKUP(A136,'2019'!A:A,1,FALSE)","v":"The Screenmobile"}]
["The Melting Pot Restaurants Inc.",289,{"$f":"VLOOKUP(A137,'2019'!A:A,1,FALSE)","v":"The Melting Pot Restaurants Inc."}]
["The Maids",46,{"$f":"VLOOKUP(A138,'2019'!A:A,1,FALSE)","v":"The Maids"}]
["The Little Gym Int'l.",189,{"$f":"VLOOKUP(A139,'2019'!A:A,1,FALSE)","v":"The Little Gym Int'l."}]
["The Learning Experience Academy of Early Education",79,{"$f":"VLOOKUP(A140,'2019'!A:A,1,FALSE)","v":"The Learning Experience Academy of Early Education"}]
["The Joint Corp.",109,{"$f":"VLOOKUP(A141,'2019'!A:A,1,FALSE)","v":"The Joint Corp."}]
["The Human Bean Drive Thru",336,{"$f":"VLOOKUP(A142,'2019'!A:A,1,FALSE)","v":"The Human Bean Drive Thru"}]
["The Greene Turtle Sports Bar & Grille",277,{"$f":"VLOOKUP(A143,'2019'!A:A,1,FALSE)","v":"The Greene Turtle Sports Bar & Grille"}]
["The Flying Locksmiths",125,{"$f":"VLOOKUP(A144,'2019'!A:A,1,FALSE)","v":"The Flying Locksmiths"}]
["The Alternative Board (TAB)",234,{"$f":"VLOOKUP(A145,'2019'!A:A,1,FALSE)","v":"The Alternative Board (TAB)"}]
["TGA Premier Youth Tennis",403,{"$f":"VLOOKUP(A146,'2019'!A:A,1,FALSE)","v":"TGA Premier Youth Tennis"}]
["Teriyaki Madness",490,{"$f":"VLOOKUP(A147,'2019'!A:A,1,FALSE)","v":"Teriyaki Madness"}]
["TeamLogic IT",242,{"$f":"VLOOKUP(A148,'2019'!A:A,1,FALSE)","v":"TeamLogic IT"}]
["Tailored Living LLC",131,{"$f":"VLOOKUP(A149,'2019'!A:A,1,FALSE)","v":"Tailored Living LLC"}]
["Taco Bell",8,{"$f":"VLOOKUP(A150,'2019'!A:A,1,FALSE)","v":"Taco Bell"}]
["System4 Facility Services",294,{"$f":"VLOOKUP(A151,'2019'!A:A,1,FALSE)","v":"System4 Facility Services"}]
["SuperGlass Windshield Repair",402,{"$f":"VLOOKUP(A152,'2019'!A:A,1,FALSE)","v":"SuperGlass Windshield Repair"}]
["Supercuts",14,{"$f":"VLOOKUP(A153,'2019'!A:A,1,FALSE)","v":"Supercuts"}]
["Super 8 by Wyndham",435,{"$f":"VLOOKUP(A154,'2019'!A:A,1,FALSE)","v":"Super 8 by Wyndham"}]
["Subway",105,{"$f":"VLOOKUP(A155,'2019'!A:A,1,FALSE)","v":"Subway"}]
["Style Encore",196,{"$f":"VLOOKUP(A156,'2019'!A:A,1,FALSE)","v":"Style Encore"}]
["Studio 6",460,{"$f":"VLOOKUP(A157,'2019'!A:A,1,FALSE)","v":"Studio 6"}]
["Stratus Building Solutions",103,{"$f":"VLOOKUP(A158,'2019'!A:A,1,FALSE)","v":"Stratus Building Solutions"}]
["Steamatic Inc.",389,{"$f":"VLOOKUP(A159,'2019'!A:A,1,FALSE)","v":"Steamatic Inc."}]
["Spring-Green Lawn Care",169,{"$f":"VLOOKUP(A160,'2019'!A:A,1,FALSE)","v":"Spring-Green Lawn Care"}]
["Sport Clips",10,{"$f":"VLOOKUP(A161,'2019'!A:A,1,FALSE)","v":"Sport Clips"}]
["Spherion Staffing",203,{"$f":"VLOOKUP(A162,'2019'!A:A,1,FALSE)","v":"Spherion Staffing"}]
["SpeedPro Imaging",399,{"$f":"VLOOKUP(A163,'2019'!A:A,1,FALSE)","v":"SpeedPro Imaging"}]
["Sonic Drive-In",6,{"$f":"VLOOKUP(A164,'2019'!A:A,1,FALSE)","v":"Sonic Drive-In"}]
["Soccer Shots Franchising LLC",267,{"$f":"VLOOKUP(A165,'2019'!A:A,1,FALSE)","v":"Soccer Shots Franchising LLC"}]
["Snap-on Tools",30,{"$f":"VLOOKUP(A166,'2019'!A:A,1,FALSE)","v":"Snap-on Tools"}]
["Snap Fitness Inc.",348,{"$f":"VLOOKUP(A167,'2019'!A:A,1,FALSE)","v":"Snap Fitness Inc."}]
["Smoothie King",35,{"$f":"VLOOKUP(A168,'2019'!A:A,1,FALSE)","v":"Smoothie King"}]
["Skyhawks Sports & Supertots Sports Academy",284,{"$f":"VLOOKUP(A169,'2019'!A:A,1,FALSE)","v":"Skyhawks Sports & Supertots Sports Academy"}]
["Sky Zone",81,{"$f":"VLOOKUP(A170,'2019'!A:A,1,FALSE)","v":"Sky Zone"}]
["Sir Speedy Print Signs Marketing",355,{"$f":"VLOOKUP(A171,'2019'!A:A,1,FALSE)","v":"Sir Speedy Print Signs Marketing"}]
["Signarama",249,{"$f":"VLOOKUP(A172,'2019'!A:A,1,FALSE)","v":"Signarama"}]
["Signal 88 Security",89,{"$f":"VLOOKUP(A173,'2019'!A:A,1,FALSE)","v":"Signal 88 Security"}]
["Servpro",12,{"$f":"VLOOKUP(A174,'2019'!A:A,1,FALSE)","v":"Servpro"}]
["ServiceMaster Clean/ServiceMaster Restore",243,{"$f":"VLOOKUP(A175,'2019'!A:A,1,FALSE)","v":"ServiceMaster Clean/ServiceMaster Restore"}]
["Senior Helpers",157,{"$f":"VLOOKUP(A176,'2019'!A:A,1,FALSE)","v":"Senior Helpers"}]
["Security 101",273,{"$f":"VLOOKUP(A177,'2019'!A:A,1,FALSE)","v":"Security 101"}]
["Scooter's Coffee",414,{"$f":"VLOOKUP(A178,'2019'!A:A,1,FALSE)","v":"Scooter's Coffee"}]
["School of Rock",163,{"$f":"VLOOKUP(A179,'2019'!A:A,1,FALSE)","v":"School of Rock"}]
["Schlotzsky's",231,{"$f":"VLOOKUP(A180,'2019'!A:A,1,FALSE)","v":"Schlotzsky's"}]
["Sanford Rose Associates Int'l. Inc.",308,{"$f":"VLOOKUP(A181,'2019'!A:A,1,FALSE)","v":"Sanford Rose Associates Int'l. Inc."}]
["Salons by JC",108,{"$f":"VLOOKUP(A182,'2019'!A:A,1,FALSE)","v":"Salons by JC"}]
["SafeSplash/SwimLabs/Swimtastic",325,{"$f":"VLOOKUP(A183,'2019'!A:A,1,FALSE)","v":"SafeSplash/SwimLabs/Swimtastic"}]
["Roy Rogers Restaurants",229,{"$f":"VLOOKUP(A184,'2019'!A:A,1,FALSE)","v":"Roy Rogers Restaurants"}]
["Round Table Pizza",187,{"$f":"VLOOKUP(A185,'2019'!A:A,1,FALSE)","v":"Round Table Pizza"}]
["Rosati's Pizza",239,{"$f":"VLOOKUP(A186,'2019'!A:A,1,FALSE)","v":"Rosati's Pizza"}]
["Rooter-Man",107,{"$f":"VLOOKUP(A187,'2019'!A:A,1,FALSE)","v":"Rooter-Man"}]
["Roosters Men's Grooming Centers",420,{"$f":"VLOOKUP(A188,'2019'!A:A,1,FALSE)","v":"Roosters Men's Grooming Centers"}]
["Rocky Mountain Chocolate Factory",453,{"$f":"VLOOKUP(A189,'2019'!A:A,1,FALSE)","v":"Rocky Mountain Chocolate Factory"}]
["Rock & Brews Franchising LLC",285,{"$f":"VLOOKUP(A190,'2019'!A:A,1,FALSE)","v":"Rock & Brews Franchising LLC"}]
["RNR Tire Express & Custom Wheels",202,{"$f":"VLOOKUP(A191,'2019'!A:A,1,FALSE)","v":"RNR Tire Express & Custom Wheels"}]
["Right at Home LLC",49,{"$f":"VLOOKUP(A192,'2019'!A:A,1,FALSE)","v":"Right at Home LLC"}]
["Retro Fitness",290,{"$f":"VLOOKUP(A193,'2019'!A:A,1,FALSE)","v":"Retro Fitness"}]
["Restoration 1",132,{"$f":"VLOOKUP(A194,'2019'!A:A,1,FALSE)","v":"Restoration 1"}]
["Rent-A-Center",266,{"$f":"VLOOKUP(A195,'2019'!A:A,1,FALSE)","v":"Rent-A-Center"}]
["Relax The Back Corp.",365,{"$f":"VLOOKUP(A196,'2019'!A:A,1,FALSE)","v":"Relax The Back Corp."}]
["Red Roof Inn",92,{"$f":"VLOOKUP(A197,'2019'!A:A,1,FALSE)","v":"Red Roof Inn"}]
["Realty One Group",230,{"$f":"VLOOKUP(A198,'2019'!A:A,1,FALSE)","v":"Realty One Group"}]
["Real Property Management",436,{"$f":"VLOOKUP(A199,'2019'!A:A,1,FALSE)","v":"Real Property Management"}]
["RE/MAX LLC",5,{"$f":"VLOOKUP(A200,'2019'!A:A,1,FALSE)","v":"RE/MAX LLC"}]
["Rainbow Int'l. Restoration & Cleaning",409,{"$f":"VLOOKUP(A201,'2019'!A:A,1,FALSE)","v":"Rainbow Int'l. Restoration & Cleaning"}]
["Qdoba Mexican Eats",297,{"$f":"VLOOKUP(A202,'2019'!A:A,1,FALSE)","v":"Qdoba Mexican Eats"}]
["PuroClean",258,{"$f":"VLOOKUP(A203,'2019'!A:A,1,FALSE)","v":"PuroClean"}]
["Pure Barre",147,{"$f":"VLOOKUP(A204,'2019'!A:A,1,FALSE)","v":"Pure Barre"}]
["ProSource Wholesale",175,{"$f":"VLOOKUP(A205,'2019'!A:A,1,FALSE)","v":"ProSource Wholesale"}]
["Property Management Inc.",152,{"$f":"VLOOKUP(A206,'2019'!A:A,1,FALSE)","v":"Property Management Inc."}]
["Pronto Insurance",443,{"$f":"VLOOKUP(A207,'2019'!A:A,1,FALSE)","v":"Pronto Insurance"}]
["Pro Image Sports",110,{"$f":"VLOOKUP(A208,'2019'!A:A,1,FALSE)","v":"Pro Image Sports"}]
["Primrose School Franchising Co.",27,{"$f":"VLOOKUP(A209,'2019'!A:A,1,FALSE)","v":"Primrose School Franchising Co."}]
["PrideStaff",113,{"$f":"VLOOKUP(A210,'2019'!A:A,1,FALSE)","v":"PrideStaff"}]
["Precision Tune Auto Care",292,{"$f":"VLOOKUP(A211,'2019'!A:A,1,FALSE)","v":"Precision Tune Auto Care"}]
["Precision Door Service",226,{"$f":"VLOOKUP(A212,'2019'!A:A,1,FALSE)","v":"Precision Door Service"}]
["Potbelly Sandwich Shop",269,{"$f":"VLOOKUP(A213,'2019'!A:A,1,FALSE)","v":"Potbelly Sandwich Shop"}]
["PostNet Neighborhood Business Centers",221,{"$f":"VLOOKUP(A214,'2019'!A:A,1,FALSE)","v":"PostNet Neighborhood Business Centers"}]
["Postal Annex+",176,{"$f":"VLOOKUP(A215,'2019'!A:A,1,FALSE)","v":"Postal Annex+"}]
["Pop-A-Lock Franchise System",93,{"$f":"VLOOKUP(A216,'2019'!A:A,1,FALSE)","v":"Pop-A-Lock Franchise System"}]
["Poolwerx",183,{"$f":"VLOOKUP(A217,'2019'!A:A,1,FALSE)","v":"Poolwerx"}]
["Play It Again Sports",247,{"$f":"VLOOKUP(A218,'2019'!A:A,1,FALSE)","v":"Play It Again Sports"}]
["Plato's Closet",97,{"$f":"VLOOKUP(A219,'2019'!A:A,1,FALSE)","v":"Plato's Closet"}]
["Planet Fitness",21,{"$f":"VLOOKUP(A220,'2019'!A:A,1,FALSE)","v":"Planet Fitness"}]
["Pizza Hut LLC",47,{"$f":"VLOOKUP(A221,'2019'!A:A,1,FALSE)","v":"Pizza Hut LLC"}]
["Pizza Factory Inc.",337,{"$f":"VLOOKUP(A222,'2019'!A:A,1,FALSE)","v":"Pizza Factory Inc."}]
["Pita Pit Inc.",342,{"$f":"VLOOKUP(A223,'2019'!A:A,1,FALSE)","v":"Pita Pit Inc."}]
["Pirtek",78,{"$f":"VLOOKUP(A224,'2019'!A:A,1,FALSE)","v":"Pirtek"}]
["PIP Marketing, Signs, Print",390,{"$f":"VLOOKUP(A225,'2019'!A:A,1,FALSE)","v":"PIP Marketing, Signs, Print"}]
["Pinot's Palette",178,{"$f":"VLOOKUP(A226,'2019'!A:A,1,FALSE)","v":"Pinot's Palette"}]
["Pillar To Post Home Inspectors",64,{"$f":"VLOOKUP(A227,'2019'!A:A,1,FALSE)","v":"Pillar To Post Home Inspectors"}]
["Phenix Salon Suites Franchising LLC",122,{"$f":"VLOOKUP(A228,'2019'!A:A,1,FALSE)","v":"Phenix Salon Suites Franchising LLC"}]
["Petland",209,{"$f":"VLOOKUP(A229,'2019'!A:A,1,FALSE)","v":"Petland"}]
["Pet Supplies Plus",32,{"$f":"VLOOKUP(A230,'2019'!A:A,1,FALSE)","v":"Pet Supplies Plus"}]
["Penn Station East Coast Subs",177,{"$f":"VLOOKUP(A231,'2019'!A:A,1,FALSE)","v":"Penn Station East Coast Subs"}]
["Pearle Vision",72,{"$f":"VLOOKUP(A232,'2019'!A:A,1,FALSE)","v":"Pearle Vision"}]
["Paul Davis Restoration",133,{"$f":"VLOOKUP(A233,'2019'!A:A,1,FALSE)","v":"Paul Davis Restoration"}]
["Patrice & Associates",119,{"$f":"VLOOKUP(A234,'2019'!A:A,1,FALSE)","v":"Patrice & Associates"}]
["Papa John's Int'l. Inc.",16,{"$f":"VLOOKUP(A235,'2019'!A:A,1,FALSE)","v":"Papa John's Int'l. Inc."}]
["Palm Beach Tan",52,{"$f":"VLOOKUP(A236,'2019'!A:A,1,FALSE)","v":"Palm Beach Tan"}]
["Pak Mail",282,{"$f":"VLOOKUP(A237,'2019'!A:A,1,FALSE)","v":"Pak Mail"}]
["Painting with a Twist",168,{"$f":"VLOOKUP(A238,'2019'!A:A,1,FALSE)","v":"Painting with a Twist"}]
["Padgett Business Services",431,{"$f":"VLOOKUP(A239,'2019'!A:A,1,FALSE)","v":"Padgett Business Services"}]
["Oxxo Care Cleaners",411,{"$f":"VLOOKUP(A240,'2019'!A:A,1,FALSE)","v":"Oxxo Care Cleaners"}]
["Oxi Fresh Franchising Co.",275,{"$f":"VLOOKUP(A241,'2019'!A:A,1,FALSE)","v":"Oxi Fresh Franchising Co."}]
["Our Town America",320,{"$f":"VLOOKUP(A242,'2019'!A:A,1,FALSE)","v":"Our Town America"}]
["Orion Food Systems LLC",212,{"$f":"VLOOKUP(A243,'2019'!A:A,1,FALSE)","v":"Orion Food Systems LLC"}]
["Orangetheory Fitness",48,{"$f":"VLOOKUP(A244,'2019'!A:A,1,FALSE)","v":"Orangetheory Fitness"}]
["One Hour Heating & Air Conditioning",104,{"$f":"VLOOKUP(A245,'2019'!A:A,1,FALSE)","v":"One Hour Heating & Air Conditioning"}]
["Once Upon A Child",58,{"$f":"VLOOKUP(A246,'2019'!A:A,1,FALSE)","v":"Once Upon A Child"}]
["Old Chicago Pizza & Taproom",254,{"$f":"VLOOKUP(A247,'2019'!A:A,1,FALSE)","v":"Old Chicago Pizza & Taproom"}]
["Office Pride Commercial Cleaning Services",410,{"$f":"VLOOKUP(A248,'2019'!A:A,1,FALSE)","v":"Office Pride Commercial Cleaning Services"}]
["Office Evolution",198,{"$f":"VLOOKUP(A249,'2019'!A:A,1,FALSE)","v":"Office Evolution"}]
["Nurse Next Door Home Care Services",50,{"$f":"VLOOKUP(A250,'2019'!A:A,1,FALSE)","v":"Nurse Next Door Home Care Services"}]
["Novus Glass",455,{"$f":"VLOOKUP(A251,'2019'!A:A,1,FALSE)","v":"Novus Glass"}]
["N-Hance Wood Refinishing",159,{"$f":"VLOOKUP(A252,'2019'!A:A,1,FALSE)","v":"N-Hance Wood Refinishing"}]
["Nekter Juice Bar Inc.",384,{"$f":"VLOOKUP(A253,'2019'!A:A,1,FALSE)","v":"Nekter Juice Bar Inc."}]
["NaturaLawn of America Inc.",172,{"$f":"VLOOKUP(A254,'2019'!A:A,1,FALSE)","v":"NaturaLawn of America Inc."}]
["Native Grill & Wings Franchising LLC",295,{"$f":"VLOOKUP(A255,'2019'!A:A,1,FALSE)","v":"Native Grill & Wings Franchising LLC"}]
["National Property Inspections Inc.",191,{"$f":"VLOOKUP(A256,'2019'!A:A,1,FALSE)","v":"National Property Inspections Inc."}]
["My Gym Children's Fitness Center",182,{"$f":"VLOOKUP(A257,'2019'!A:A,1,FALSE)","v":"My Gym Children's Fitness Center"}]
["Multivista",252,{"$f":"VLOOKUP(A258,'2019'!A:A,1,FALSE)","v":"Multivista"}]
["Mr. Rooter",276,{"$f":"VLOOKUP(A259,'2019'!A:A,1,FALSE)","v":"Mr. Rooter"}]
["Mr. Handyman Int'l. LLC",371,{"$f":"VLOOKUP(A260,'2019'!A:A,1,FALSE)","v":"Mr. Handyman Int'l. LLC"}]
["Mr. Goodcents Franchise Systems Inc.",391,{"$f":"VLOOKUP(A261,'2019'!A:A,1,FALSE)","v":"Mr. Goodcents Franchise Systems Inc."}]
["Mr. Appliance LLC",438,{"$f":"VLOOKUP(A262,'2019'!A:A,1,FALSE)","v":"Mr. Appliance LLC"}]
["Motel 6",116,{"$f":"VLOOKUP(A263,'2019'!A:A,1,FALSE)","v":"Motel 6"}]
["Mosquito Squad",283,{"$f":"VLOOKUP(A264,'2019'!A:A,1,FALSE)","v":"Mosquito Squad"}]
["Mosquito Joe",42,{"$f":"VLOOKUP(A265,'2019'!A:A,1,FALSE)","v":"Mosquito Joe"}]
["Molly Maid",174,{"$f":"VLOOKUP(A266,'2019'!A:A,1,FALSE)","v":"Molly Maid"}]
["Moe's Southwest Grill",219,{"$f":"VLOOKUP(A267,'2019'!A:A,1,FALSE)","v":"Moe's Southwest Grill"}]
["Miracle Method Surface Refinishing",173,{"$f":"VLOOKUP(A268,'2019'!A:A,1,FALSE)","v":"Miracle Method Surface Refinishing"}]
["Minuteman Press Int'l. Inc.",141,{"$f":"VLOOKUP(A269,'2019'!A:A,1,FALSE)","v":"Minuteman Press Int'l. Inc."}]
["Milex Complete Auto Care/Mr. Transmission",493,{"$f":"VLOOKUP(A270,'2019'!A:A,1,FALSE)","v":"Milex Complete Auto Care/Mr. Transmission"}]
["Mighty Auto Parts",345,{"$f":"VLOOKUP(A271,'2019'!A:A,1,FALSE)","v":"Mighty Auto Parts"}]
["Metal Supermarkets",307,{"$f":"VLOOKUP(A272,'2019'!A:A,1,FALSE)","v":"Metal Supermarkets"}]
["Merry Maids",38,{"$f":"VLOOKUP(A273,'2019'!A:A,1,FALSE)","v":"Merry Maids"}]
["Merle Norman Cosmetics",421,{"$f":"VLOOKUP(A274,'2019'!A:A,1,FALSE)","v":"Merle Norman Cosmetics"}]
["McDonald's",1,{"$f":"VLOOKUP(A275,'2019'!A:A,1,FALSE)","v":"McDonald's"}]
["McAlister's Deli",114,{"$f":"VLOOKUP(A276,'2019'!A:A,1,FALSE)","v":"McAlister's Deli"}]
["Mathnasium Learning Centers",28,{"$f":"VLOOKUP(A277,'2019'!A:A,1,FALSE)","v":"Mathnasium Learning Centers"}]
["Matco Tools",36,{"$f":"VLOOKUP(A278,'2019'!A:A,1,FALSE)","v":"Matco Tools"}]
["MassageLuXe",370,{"$f":"VLOOKUP(A279,'2019'!A:A,1,FALSE)","v":"MassageLuXe"}]
["Massage Envy",45,{"$f":"VLOOKUP(A280,'2019'!A:A,1,FALSE)","v":"Massage Envy"}]
["Martinizing",450,{"$f":"VLOOKUP(A281,'2019'!A:A,1,FALSE)","v":"Martinizing"}]
["Marco's Pizza",25,{"$f":"VLOOKUP(A282,'2019'!A:A,1,FALSE)","v":"Marco's Pizza"}]
["Mainstream Boutique",155,{"$f":"VLOOKUP(A283,'2019'!A:A,1,FALSE)","v":"Mainstream Boutique"}]
["MaidPro",80,{"$f":"VLOOKUP(A284,'2019'!A:A,1,FALSE)","v":"MaidPro"}]
["Maid Brigade",347,{"$f":"VLOOKUP(A285,'2019'!A:A,1,FALSE)","v":"Maid Brigade"}]
["Mac Tools",40,{"$f":"VLOOKUP(A286,'2019'!A:A,1,FALSE)","v":"Mac Tools"}]
["Maaco Franchising Inc.",228,{"$f":"VLOOKUP(A287,'2019'!A:A,1,FALSE)","v":"Maaco Franchising Inc."}]
["Line-X LLC",149,{"$f":"VLOOKUP(A288,'2019'!A:A,1,FALSE)","v":"Line-X LLC"}]
["Liberty Tax Service",485,{"$f":"VLOOKUP(A289,'2019'!A:A,1,FALSE)","v":"Liberty Tax Service"}]
["Lendio Franchising",201,{"$f":"VLOOKUP(A290,'2019'!A:A,1,FALSE)","v":"Lendio Franchising"}]
["Ledo Pizza",376,{"$f":"VLOOKUP(A291,'2019'!A:A,1,FALSE)","v":"Ledo Pizza"}]
["Learning Express Toys",392,{"$f":"VLOOKUP(A292,'2019'!A:A,1,FALSE)","v":"Learning Express Toys"}]
["Leadership Management Inc.",314,{"$f":"VLOOKUP(A293,'2019'!A:A,1,FALSE)","v":"Leadership Management Inc."}]
["Lawn Doctor",91,{"$f":"VLOOKUP(A294,'2019'!A:A,1,FALSE)","v":"Lawn Doctor"}]
["Launch Trampoline Park",339,{"$f":"VLOOKUP(A295,'2019'!A:A,1,FALSE)","v":"Launch Trampoline Park"}]
["LaRosa's Pizzeria",412,{"$f":"VLOOKUP(A296,'2019'!A:A,1,FALSE)","v":"LaRosa's Pizzeria"}]
["Labor Finders",129,{"$f":"VLOOKUP(A297,'2019'!A:A,1,FALSE)","v":"Labor Finders"}]
["L&L Hawaiian Barbecue",240,{"$f":"VLOOKUP(A298,'2019'!A:A,1,FALSE)","v":"L&L Hawaiian Barbecue"}]
["Kumon Math & Reading Centers",20,{"$f":"VLOOKUP(A299,'2019'!A:A,1,FALSE)","v":"Kumon Math & Reading Centers"}]
["Kona Ice",83,{"$f":"VLOOKUP(A300,'2019'!A:A,1,FALSE)","v":"Kona Ice"}]
["Kolache Factory",416,{"$f":"VLOOKUP(A301,'2019'!A:A,1,FALSE)","v":"Kolache Factory"}]
["Kitchen Tune-Up",271,{"$f":"VLOOKUP(A302,'2019'!A:A,1,FALSE)","v":"Kitchen Tune-Up"}]
["Kinderdance Int'l. Inc.",386,{"$f":"VLOOKUP(A303,'2019'!A:A,1,FALSE)","v":"Kinderdance Int'l. Inc."}]
["Kilwins Chocolates Franchise Inc.",94,{"$f":"VLOOKUP(A304,'2019'!A:A,1,FALSE)","v":"Kilwins Chocolates Franchise Inc."}]
["Kiddie Academy",73,{"$f":"VLOOKUP(A305,'2019'!A:A,1,FALSE)","v":"Kiddie Academy"}]
["Kid to Kid",207,{"$f":"VLOOKUP(A306,'2019'!A:A,1,FALSE)","v":"Kid to Kid"}]
["KFC US LLC",233,{"$f":"VLOOKUP(A307,'2019'!A:A,1,FALSE)","v":"KFC US LLC"}]
["Keller Williams",22,{"$f":"VLOOKUP(A308,'2019'!A:A,1,FALSE)","v":"Keller Williams"}]
["Kampgrounds of America Inc.",366,{"$f":"VLOOKUP(A309,'2019'!A:A,1,FALSE)","v":"Kampgrounds of America Inc."}]
["Jimmy John's Gourmet Sandwiches",11,{"$f":"VLOOKUP(A310,'2019'!A:A,1,FALSE)","v":"Jimmy John's Gourmet Sandwiches"}]
["Jiffy Lube Int'l. Inc.",181,{"$f":"VLOOKUP(A311,'2019'!A:A,1,FALSE)","v":"Jiffy Lube Int'l. Inc."}]
["Jet's Pizza",127,{"$f":"VLOOKUP(A312,'2019'!A:A,1,FALSE)","v":"Jet's Pizza"}]
["Jet-Black/Yellow Dawg Striping",241,{"$f":"VLOOKUP(A313,'2019'!A:A,1,FALSE)","v":"Jet-Black/Yellow Dawg Striping"}]
["Jersey Mike's Subs",24,{"$f":"VLOOKUP(A314,'2019'!A:A,1,FALSE)","v":"Jersey Mike's Subs"}]
["JEI Learning Center",322,{"$f":"VLOOKUP(A315,'2019'!A:A,1,FALSE)","v":"JEI Learning Center"}]
["Jazzercise Inc.",63,{"$f":"VLOOKUP(A316,'2019'!A:A,1,FALSE)","v":"Jazzercise Inc."}]
["Jan-Pro Franchising Int'l. Inc.",51,{"$f":"VLOOKUP(A317,'2019'!A:A,1,FALSE)","v":"Jan-Pro Franchising Int'l. Inc."}]
["Jack in the Box",43,{"$f":"VLOOKUP(A318,'2019'!A:A,1,FALSE)","v":"Jack in the Box"}]
["Interim HealthCare",102,{"$f":"VLOOKUP(A319,'2019'!A:A,1,FALSE)","v":"Interim HealthCare"}]
["InterContinental Hotels & Resorts",405,{"$f":"VLOOKUP(A320,'2019'!A:A,1,FALSE)","v":"InterContinental Hotels & Resorts"}]
["Image360",310,{"$f":"VLOOKUP(A321,'2019'!A:A,1,FALSE)","v":"Image360"}]
["iLoveKickboxing.com",425,{"$f":"VLOOKUP(A322,'2019'!A:A,1,FALSE)","v":"iLoveKickboxing.com"}]
["Hwy 55 Burgers, Shakes & Fries",383,{"$f":"VLOOKUP(A323,'2019'!A:A,1,FALSE)","v":"Hwy 55 Burgers, Shakes & Fries"}]
["Huntington Learning Centers",154,{"$f":"VLOOKUP(A324,'2019'!A:A,1,FALSE)","v":"Huntington Learning Centers"}]
["Hungry Howie's Pizza & Subs",214,{"$f":"VLOOKUP(A325,'2019'!A:A,1,FALSE)","v":"Hungry Howie's Pizza & Subs"}]
["HouseMaster",280,{"$f":"VLOOKUP(A326,'2019'!A:A,1,FALSE)","v":"HouseMaster"}]
["Hot Dog on a Stick",432,{"$f":"VLOOKUP(A327,'2019'!A:A,1,FALSE)","v":"Hot Dog on a Stick"}]
["Hooters",236,{"$f":"VLOOKUP(A328,'2019'!A:A,1,FALSE)","v":"Hooters"}]
["HoneyBaked Ham",130,{"$f":"VLOOKUP(A329,'2019'!A:A,1,FALSE)","v":"HoneyBaked Ham"}]
["Homewood Suites by Hilton",66,{"$f":"VLOOKUP(A330,'2019'!A:A,1,FALSE)","v":"Homewood Suites by Hilton"}]
["HomeWell Senior Care",300,{"$f":"VLOOKUP(A331,'2019'!A:A,1,FALSE)","v":"HomeWell Senior Care"}]
["HomeVestors of America Inc.",37,{"$f":"VLOOKUP(A332,'2019'!A:A,1,FALSE)","v":"HomeVestors of America Inc."}]
["HomeTeam Inspection Service",126,{"$f":"VLOOKUP(A333,'2019'!A:A,1,FALSE)","v":"HomeTeam Inspection Service"}]
["Home Instead Senior Care",440,{"$f":"VLOOKUP(A334,'2019'!A:A,1,FALSE)","v":"Home Instead Senior Care"}]
["Home Care Assistance",305,{"$f":"VLOOKUP(A335,'2019'!A:A,1,FALSE)","v":"Home Care Assistance"}]
["Holiday Inn and Holiday Inn Express",62,{"$f":"VLOOKUP(A336,'2019'!A:A,1,FALSE)","v":"Holiday Inn and Holiday Inn Express"}]
["HobbyTown",419,{"$f":"VLOOKUP(A337,'2019'!A:A,1,FALSE)","v":"HobbyTown"}]
["Hilton Hotels and Resorts",33,{"$f":"VLOOKUP(A338,'2019'!A:A,1,FALSE)","v":"Hilton Hotels and Resorts"}]
["Hilton Garden Inn",100,{"$f":"VLOOKUP(A339,'2019'!A:A,1,FALSE)","v":"Hilton Garden Inn"}]
["Hardee's Restaurants LLC",9,{"$f":"VLOOKUP(A340,'2019'!A:A,1,FALSE)","v":"Hardee's Restaurants LLC"}]
["Hand and Stone Massage and Facial Spa",96,{"$f":"VLOOKUP(A341,'2019'!A:A,1,FALSE)","v":"Hand and Stone Massage and Facial Spa"}]
["Hampton by Hilton",29,{"$f":"VLOOKUP(A342,'2019'!A:A,1,FALSE)","v":"Hampton by Hilton"}]
["H&R Block",286,{"$f":"VLOOKUP(A343,'2019'!A:A,1,FALSE)","v":"H&R Block"}]
["Gyu-Kaku Japanese BBQ Restaurant",246,{"$f":"VLOOKUP(A344,'2019'!A:A,1,FALSE)","v":"Gyu-Kaku Japanese BBQ Restaurant"}]
["GymGuyz",470,{"$f":"VLOOKUP(A345,'2019'!A:A,1,FALSE)","v":"GymGuyz"}]
["Great Clips",7,{"$f":"VLOOKUP(A346,'2019'!A:A,1,FALSE)","v":"Great Clips"}]
["Great American Cookies",222,{"$f":"VLOOKUP(A347,'2019'!A:A,1,FALSE)","v":"Great American Cookies"}]
["Grease Monkey Franchising LLC",278,{"$f":"VLOOKUP(A348,'2019'!A:A,1,FALSE)","v":"Grease Monkey Franchising LLC"}]
["Good Feet Worldwide LLC",423,{"$f":"VLOOKUP(A349,'2019'!A:A,1,FALSE)","v":"Good Feet Worldwide LLC"}]
["GoliathTech Inc.",210,{"$f":"VLOOKUP(A350,'2019'!A:A,1,FALSE)","v":"GoliathTech Inc."}]
["Goldfish Swim School Franchising LLC",55,{"$f":"VLOOKUP(A351,'2019'!A:A,1,FALSE)","v":"Goldfish Swim School Franchising LLC"}]
["Golden Krust Franchising Inc.",335,{"$f":"VLOOKUP(A352,'2019'!A:A,1,FALSE)","v":"Golden Krust Franchising Inc."}]
["Golden Corral Restaurants",54,{"$f":"VLOOKUP(A353,'2019'!A:A,1,FALSE)","v":"Golden Corral Restaurants"}]
["Golden Chick",378,{"$f":"VLOOKUP(A354,'2019'!A:A,1,FALSE)","v":"Golden Chick"}]
["Goddard Systems Inc.",77,{"$f":"VLOOKUP(A355,'2019'!A:A,1,FALSE)","v":"Goddard Systems Inc."}]
["Go Mini's Franchising LLC",415,{"$f":"VLOOKUP(A356,'2019'!A:A,1,FALSE)","v":"Go Mini's Franchising LLC"}]
["GNC Franchising",85,{"$f":"VLOOKUP(A357,'2019'!A:A,1,FALSE)","v":"GNC Franchising"}]
["Gloria Jean's Coffees",274,{"$f":"VLOOKUP(A358,'2019'!A:A,1,FALSE)","v":"Gloria Jean's Coffees"}]
["Glass Doctor",179,{"$f":"VLOOKUP(A359,'2019'!A:A,1,FALSE)","v":"Glass Doctor"}]
["Gateway Newstands",451,{"$f":"VLOOKUP(A360,'2019'!A:A,1,FALSE)","v":"Gateway Newstands"}]
["Fyzical Therapy & Balance Centers",117,{"$f":"VLOOKUP(A361,'2019'!A:A,1,FALSE)","v":"Fyzical Therapy & Balance Centers"}]
["Fuzzy's Taco Shop",123,{"$f":"VLOOKUP(A362,'2019'!A:A,1,FALSE)","v":"Fuzzy's Taco Shop"}]
["Furniture Medic",303,{"$f":"VLOOKUP(A363,'2019'!A:A,1,FALSE)","v":"Furniture Medic"}]
["Fully Promoted",329,{"$f":"VLOOKUP(A364,'2019'!A:A,1,FALSE)","v":"Fully Promoted"}]
["Freedom Boat Club",309,{"$f":"VLOOKUP(A365,'2019'!A:A,1,FALSE)","v":"Freedom Boat Club"}]
["Freddy's Frozen Custard & Steakburgers",44,{"$f":"VLOOKUP(A366,'2019'!A:A,1,FALSE)","v":"Freddy's Frozen Custard & Steakburgers"}]
["Foliage Design Systems",361,{"$f":"VLOOKUP(A367,'2019'!A:A,1,FALSE)","v":"Foliage Design Systems"}]
["Floor Coverings International",156,{"$f":"VLOOKUP(A368,'2019'!A:A,1,FALSE)","v":"Floor Coverings International"}]
["Fleet Feet",90,{"$f":"VLOOKUP(A369,'2019'!A:A,1,FALSE)","v":"Fleet Feet"}]
["Five Star Painting",457,{"$f":"VLOOKUP(A370,'2019'!A:A,1,FALSE)","v":"Five Star Painting"}]
["Fit Body Boot Camp",350,{"$f":"VLOOKUP(A371,'2019'!A:A,1,FALSE)","v":"Fit Body Boot Camp"}]
["Fish Window Cleaning Services Inc.",193,{"$f":"VLOOKUP(A372,'2019'!A:A,1,FALSE)","v":"Fish Window Cleaning Services Inc."}]
["FirstLight Home Care Franchising LLC",65,{"$f":"VLOOKUP(A373,'2019'!A:A,1,FALSE)","v":"FirstLight Home Care Franchising LLC"}]
["First Choice Haircutters",317,{"$f":"VLOOKUP(A374,'2019'!A:A,1,FALSE)","v":"First Choice Haircutters"}]
["Firehouse Subs",39,{"$f":"VLOOKUP(A375,'2019'!A:A,1,FALSE)","v":"Firehouse Subs"}]
["Fiesta Auto Insurance and Tax",194,{"$f":"VLOOKUP(A376,'2019'!A:A,1,FALSE)","v":"Fiesta Auto Insurance and Tax"}]
["Fibrenew",185,{"$f":"VLOOKUP(A377,'2019'!A:A,1,FALSE)","v":"Fibrenew"}]
["FastSigns Int'l. Inc.",70,{"$f":"VLOOKUP(A378,'2019'!A:A,1,FALSE)","v":"FastSigns Int'l. Inc."}]
["Fastest Labs",497,{"$f":"VLOOKUP(A379,'2019'!A:A,1,FALSE)","v":"Fastest Labs"}]
["Fantastic Sams Cut & Color",418,{"$f":"VLOOKUP(A380,'2019'!A:A,1,FALSE)","v":"Fantastic Sams Cut & Color"}]
["Express Oil Change & Tire Engineers",120,{"$f":"VLOOKUP(A381,'2019'!A:A,1,FALSE)","v":"Express Oil Change & Tire Engineers"}]
["Express Employment Professionals",69,{"$f":"VLOOKUP(A382,'2019'!A:A,1,FALSE)","v":"Express Employment Professionals"}]
["Experimac",223,{"$f":"VLOOKUP(A383,'2019'!A:A,1,FALSE)","v":"Experimac"}]
["Expense Reduction Analysts",318,{"$f":"VLOOKUP(A384,'2019'!A:A,1,FALSE)","v":"Expense Reduction Analysts"}]
["Expedia CruiseShipCenters",464,{"$f":"VLOOKUP(A385,'2019'!A:A,1,FALSE)","v":"Expedia CruiseShipCenters"}]
["Executive Home Care",264,{"$f":"VLOOKUP(A386,'2019'!A:A,1,FALSE)","v":"Executive Home Care"}]
["Estrella Insurance",358,{"$f":"VLOOKUP(A387,'2019'!A:A,1,FALSE)","v":"Estrella Insurance"}]
["Erbert & Gerbert's Sandwich Shop",312,{"$f":"VLOOKUP(A388,'2019'!A:A,1,FALSE)","v":"Erbert & Gerbert's Sandwich Shop"}]
["Enviro-Master Int'l. Franchise LLC",82,{"$f":"VLOOKUP(A389,'2019'!A:A,1,FALSE)","v":"Enviro-Master Int'l. Franchise LLC"}]
["Embassy Suites by Hilton",61,{"$f":"VLOOKUP(A390,'2019'!A:A,1,FALSE)","v":"Embassy Suites by Hilton"}]
["Elements Massage",238,{"$f":"VLOOKUP(A391,'2019'!A:A,1,FALSE)","v":"Elements Massage"}]
["Edible Arrangements",53,{"$f":"VLOOKUP(A392,'2019'!A:A,1,FALSE)","v":"Edible Arrangements"}]
["EarthWise Pet",377,{"$f":"VLOOKUP(A393,'2019'!A:A,1,FALSE)","v":"EarthWise Pet"}]
["Duraclean",380,{"$f":"VLOOKUP(A394,'2019'!A:A,1,FALSE)","v":"Duraclean"}]
["Dunkin'",3,{"$f":"VLOOKUP(A395,'2019'!A:A,1,FALSE)","v":"Dunkin'"}]
["DreamMaker Bath & Kitchen",332,{"$f":"VLOOKUP(A396,'2019'!A:A,1,FALSE)","v":"DreamMaker Bath & Kitchen"}]
["Dream Vacations",138,{"$f":"VLOOKUP(A397,'2019'!A:A,1,FALSE)","v":"Dream Vacations"}]
["Drama Kids Int'l.",192,{"$f":"VLOOKUP(A398,'2019'!A:A,1,FALSE)","v":"Drama Kids Int'l."}]
["Doubletree by Hilton",144,{"$f":"VLOOKUP(A399,'2019'!A:A,1,FALSE)","v":"Doubletree by Hilton"}]
["Donatos",195,{"$f":"VLOOKUP(A400,'2019'!A:A,1,FALSE)","v":"Donatos"}]
["Dogtopia",205,{"$f":"VLOOKUP(A401,'2019'!A:A,1,FALSE)","v":"Dogtopia"}]
["Dippin' Dots Franchising LLC",369,{"$f":"VLOOKUP(A402,'2019'!A:A,1,FALSE)","v":"Dippin' Dots Franchising LLC"}]
["Destination Athlete LLC",304,{"$f":"VLOOKUP(A403,'2019'!A:A,1,FALSE)","v":"Destination Athlete LLC"}]
["Deli Delicious",417,{"$f":"VLOOKUP(A404,'2019'!A:A,1,FALSE)","v":"Deli Delicious"}]
["Del Taco Fresh Mexican Grill",188,{"$f":"VLOOKUP(A405,'2019'!A:A,1,FALSE)","v":"Del Taco Fresh Mexican Grill"}]
["D-BAT Academies Inc.",311,{"$f":"VLOOKUP(A406,'2019'!A:A,1,FALSE)","v":"D-BAT Academies Inc."}]
["Dale Carnegie Training",171,{"$f":"VLOOKUP(A407,'2019'!A:A,1,FALSE)","v":"Dale Carnegie Training"}]
["Dairy Queen",67,{"$f":"VLOOKUP(A408,'2019'!A:A,1,FALSE)","v":"Dairy Queen"}]
["Culver's",13,{"$f":"VLOOKUP(A409,'2019'!A:A,1,FALSE)","v":"Culver's"}]
["Crunch Franchise",216,{"$f":"VLOOKUP(A410,'2019'!A:A,1,FALSE)","v":"Crunch Franchise"}]
["Cruise Planners",60,{"$f":"VLOOKUP(A411,'2019'!A:A,1,FALSE)","v":"Cruise Planners"}]
["Crown Trophy Inc.",324,{"$f":"VLOOKUP(A412,'2019'!A:A,1,FALSE)","v":"Crown Trophy Inc."}]
["Creative World School Franchising Co. Inc.",396,{"$f":"VLOOKUP(A413,'2019'!A:A,1,FALSE)","v":"Creative World School Franchising Co. Inc."}]
["Creative Colors Int'l. Inc.",341,{"$f":"VLOOKUP(A414,'2019'!A:A,1,FALSE)","v":"Creative Colors Int'l. Inc."}]
["CPR-Cell Phone Repair",26,{"$f":"VLOOKUP(A415,'2019'!A:A,1,FALSE)","v":"CPR-Cell Phone Repair"}]
["Cousins Subs",404,{"$f":"VLOOKUP(A416,'2019'!A:A,1,FALSE)","v":"Cousins Subs"}]
["Cost Cutters Family Hair Care",385,{"$f":"VLOOKUP(A417,'2019'!A:A,1,FALSE)","v":"Cost Cutters Family Hair Care"}]
["Cornwell Quality Tools",145,{"$f":"VLOOKUP(A418,'2019'!A:A,1,FALSE)","v":"Cornwell Quality Tools"}]
["Cookie Cutters Haircuts for Kids",444,{"$f":"VLOOKUP(A419,'2019'!A:A,1,FALSE)","v":"Cookie Cutters Haircuts for Kids"}]
["Concrete Raising of America Inc.",398,{"$f":"VLOOKUP(A420,'2019'!A:A,1,FALSE)","v":"Concrete Raising of America Inc."}]
["Computer Troubleshooters",498,{"$f":"VLOOKUP(A421,'2019'!A:A,1,FALSE)","v":"Computer Troubleshooters"}]
["Color Glo Int'l.",217,{"$f":"VLOOKUP(A422,'2019'!A:A,1,FALSE)","v":"Color Glo Int'l."}]
["College Nannies, Sitters and Tutors",56,{"$f":"VLOOKUP(A423,'2019'!A:A,1,FALSE)","v":"College Nannies, Sitters and Tutors"}]
["College Hunks Hauling Junk & Moving",260,{"$f":"VLOOKUP(A424,'2019'!A:A,1,FALSE)","v":"College Hunks Hauling Junk & Moving"}]
["CMIT Solutions Inc.",186,{"$f":"VLOOKUP(A425,'2019'!A:A,1,FALSE)","v":"CMIT Solutions Inc."}]
["Club Pilates Franchise",237,{"$f":"VLOOKUP(A426,'2019'!A:A,1,FALSE)","v":"Club Pilates Franchise"}]
["Closets By Design Franchising",437,{"$f":"VLOOKUP(A427,'2019'!A:A,1,FALSE)","v":"Closets By Design Franchising"}]
["Closet Factory",180,{"$f":"VLOOKUP(A428,'2019'!A:A,1,FALSE)","v":"Closet Factory"}]
["CKO Kickboxing",413,{"$f":"VLOOKUP(A429,'2019'!A:A,1,FALSE)","v":"CKO Kickboxing"}]
["City Wide Franchise",150,{"$f":"VLOOKUP(A430,'2019'!A:A,1,FALSE)","v":"City Wide Franchise"}]
["Circle K",208,{"$f":"VLOOKUP(A431,'2019'!A:A,1,FALSE)","v":"Circle K"}]
["Cinnabon",98,{"$f":"VLOOKUP(A432,'2019'!A:A,1,FALSE)","v":"Cinnabon"}]
["Chronic Tacos Enterprises Inc.",354,{"$f":"VLOOKUP(A433,'2019'!A:A,1,FALSE)","v":"Chronic Tacos Enterprises Inc."}]
["Christian Brothers Automotive Corp.",357,{"$f":"VLOOKUP(A434,'2019'!A:A,1,FALSE)","v":"Christian Brothers Automotive Corp."}]
["Chester's",153,{"$f":"VLOOKUP(A435,'2019'!A:A,1,FALSE)","v":"Chester's"}]
["ChemStation",256,{"$f":"VLOOKUP(A436,'2019'!A:A,1,FALSE)","v":"ChemStation"}]
["Chem-Dry Carpet & Upholstery Cleaning",137,{"$f":"VLOOKUP(A437,'2019'!A:A,1,FALSE)","v":"Chem-Dry Carpet & Upholstery Cleaning"}]
["Checkers Drive-In Restaurants Inc.",140,{"$f":"VLOOKUP(A438,'2019'!A:A,1,FALSE)","v":"Checkers Drive-In Restaurants Inc."}]
["Charleys Philly Steaks",160,{"$f":"VLOOKUP(A439,'2019'!A:A,1,FALSE)","v":"Charleys Philly Steaks"}]
["Champs Chicken",281,{"$f":"VLOOKUP(A440,'2019'!A:A,1,FALSE)","v":"Champs Chicken"}]
["Challenge Island",428,{"$f":"VLOOKUP(A441,'2019'!A:A,1,FALSE)","v":"Challenge Island"}]
["CertaPro Painters",306,{"$f":"VLOOKUP(A442,'2019'!A:A,1,FALSE)","v":"CertaPro Painters"}]
["Carstar Franchise Systems Inc.",255,{"$f":"VLOOKUP(A443,'2019'!A:A,1,FALSE)","v":"Carstar Franchise Systems Inc."}]
["Carl's Jr. Restaurants LLC",15,{"$f":"VLOOKUP(A444,'2019'!A:A,1,FALSE)","v":"Carl's Jr. Restaurants LLC"}]
["Caring Senior Service",323,{"$f":"VLOOKUP(A445,'2019'!A:A,1,FALSE)","v":"Caring Senior Service"}]
["Captain D's LLC",372,{"$f":"VLOOKUP(A446,'2019'!A:A,1,FALSE)","v":"Captain D's LLC"}]
["Capriotti's Sandwich Shop Inc.",259,{"$f":"VLOOKUP(A447,'2019'!A:A,1,FALSE)","v":"Capriotti's Sandwich Shop Inc."}]
["Camp Bow Wow",146,{"$f":"VLOOKUP(A448,'2019'!A:A,1,FALSE)","v":"Camp Bow Wow"}]
["Buildingstars Int'l. Inc.",224,{"$f":"VLOOKUP(A449,'2019'!A:A,1,FALSE)","v":"Buildingstars Int'l. Inc."}]
["Buffalo Wings & Rings LLC",293,{"$f":"VLOOKUP(A450,'2019'!A:A,1,FALSE)","v":"Buffalo Wings & Rings LLC"}]
["Budget Blinds LLC",23,{"$f":"VLOOKUP(A451,'2019'!A:A,1,FALSE)","v":"Budget Blinds LLC"}]
["British Swim School USA",121,{"$f":"VLOOKUP(A452,'2019'!A:A,1,FALSE)","v":"British Swim School USA"}]
["Brightway Insurance",199,{"$f":"VLOOKUP(A453,'2019'!A:A,1,FALSE)","v":"Brightway Insurance"}]
["BrightStar Care",75,{"$f":"VLOOKUP(A454,'2019'!A:A,1,FALSE)","v":"BrightStar Care"}]
["Brass Tap",213,{"$f":"VLOOKUP(A455,'2019'!A:A,1,FALSE)","v":"Brass Tap"}]
["Bojangles' Famous Chicken 'n Biscuits",57,{"$f":"VLOOKUP(A456,'2019'!A:A,1,FALSE)","v":"Bojangles' Famous Chicken 'n Biscuits"}]
["Blaze Fast-Fire'd Pizza",95,{"$f":"VLOOKUP(A457,'2019'!A:A,1,FALSE)","v":"Blaze Fast-Fire'd Pizza"}]
["Black Bear Diner",211,{"$f":"VLOOKUP(A458,'2019'!A:A,1,FALSE)","v":"Black Bear Diner"}]
["Bio-One Inc.",344,{"$f":"VLOOKUP(A459,'2019'!A:A,1,FALSE)","v":"Bio-One Inc."}]
["Bin There Dump That",313,{"$f":"VLOOKUP(A460,'2019'!A:A,1,FALSE)","v":"Bin There Dump That"}]
["Big O Tires LLC",250,{"$f":"VLOOKUP(A461,'2019'!A:A,1,FALSE)","v":"Big O Tires LLC"}]
["Big Frog Custom T-Shirts Inc.",225,{"$f":"VLOOKUP(A462,'2019'!A:A,1,FALSE)","v":"Big Frog Custom T-Shirts Inc."}]
["Ben's Soft Pretzels",379,{"$f":"VLOOKUP(A463,'2019'!A:A,1,FALSE)","v":"Ben's Soft Pretzels"}]
["Ben & Jerry's",261,{"$f":"VLOOKUP(A464,'2019'!A:A,1,FALSE)","v":"Ben & Jerry's"}]
["Beef Jerky Outlet Franchise Inc.",99,{"$f":"VLOOKUP(A465,'2019'!A:A,1,FALSE)","v":"Beef Jerky Outlet Franchise Inc."}]
["Baymont by Wyndham",299,{"$f":"VLOOKUP(A466,'2019'!A:A,1,FALSE)","v":"Baymont by Wyndham"}]
["Batteries Plus Bulbs",118,{"$f":"VLOOKUP(A467,'2019'!A:A,1,FALSE)","v":"Batteries Plus Bulbs"}]
["Baskin-Robbins",41,{"$f":"VLOOKUP(A468,'2019'!A:A,1,FALSE)","v":"Baskin-Robbins"}]
["Bar-B-Cutie SmokeHouse",326,{"$f":"VLOOKUP(A469,'2019'!A:A,1,FALSE)","v":"Bar-B-Cutie SmokeHouse"}]
["Bach to Rock",227,{"$f":"VLOOKUP(A470,'2019'!A:A,1,FALSE)","v":"Bach to Rock"}]
["Aussie Pet Mobile Inc.",359,{"$f":"VLOOKUP(A471,'2019'!A:A,1,FALSE)","v":"Aussie Pet Mobile Inc."}]
["Auntie Anne's Hand-Rolled Soft Pretzels",124,{"$f":"VLOOKUP(A472,'2019'!A:A,1,FALSE)","v":"Auntie Anne's Hand-Rolled Soft Pretzels"}]
["AtWork Group",88,{"$f":"VLOOKUP(A473,'2019'!A:A,1,FALSE)","v":"AtWork Group"}]
["Assisting Hands Home Care",164,{"$f":"VLOOKUP(A474,'2019'!A:A,1,FALSE)","v":"Assisting Hands Home Care"}]
["Assisted Living Locators",360,{"$f":"VLOOKUP(A475,'2019'!A:A,1,FALSE)","v":"Assisted Living Locators"}]
["ASP-America's Swimming Pool Co.",101,{"$f":"VLOOKUP(A476,'2019'!A:A,1,FALSE)","v":"ASP-America's Swimming Pool Co."}]
["Arooga's Grille House & Sports Bar",488,{"$f":"VLOOKUP(A477,'2019'!A:A,1,FALSE)","v":"Arooga's Grille House & Sports Bar"}]
["Arby's",112,{"$f":"VLOOKUP(A478,'2019'!A:A,1,FALSE)","v":"Arby's"}]
["ApexNetwork Physical Therapy",456,{"$f":"VLOOKUP(A479,'2019'!A:A,1,FALSE)","v":"ApexNetwork Physical Therapy"}]
["Apex Leadership Co.",263,{"$f":"VLOOKUP(A480,'2019'!A:A,1,FALSE)","v":"Apex Leadership Co."}]
["Anytime Fitness",17,{"$f":"VLOOKUP(A481,'2019'!A:A,1,FALSE)","v":"Anytime Fitness"}]
["Any Lab Test Now",352,{"$f":"VLOOKUP(A482,'2019'!A:A,1,FALSE)","v":"Any Lab Test Now"}]
["Anago Cleaning Systems",68,{"$f":"VLOOKUP(A483,'2019'!A:A,1,FALSE)","v":"Anago Cleaning Systems"}]
["ampm",334,{"$f":"VLOOKUP(A484,'2019'!A:A,1,FALSE)","v":"ampm"}]
["American Leak Detection",363,{"$f":"VLOOKUP(A485,'2019'!A:A,1,FALSE)","v":"American Leak Detection"}]
["American Family Care",115,{"$f":"VLOOKUP(A486,'2019'!A:A,1,FALSE)","v":"American Family Care"}]
["Amazing Lash Studio",136,{"$f":"VLOOKUP(A487,'2019'!A:A,1,FALSE)","v":"Amazing Lash Studio"}]
["Amada Senior Care",245,{"$f":"VLOOKUP(A488,'2019'!A:A,1,FALSE)","v":"Amada Senior Care"}]
["AlphaGraphics",142,{"$f":"VLOOKUP(A489,'2019'!A:A,1,FALSE)","v":"AlphaGraphics"}]
["Allegra Marketing-Print-Mail",400,{"$f":"VLOOKUP(A490,'2019'!A:A,1,FALSE)","v":"Allegra Marketing-Print-Mail"}]
["Aire-Master of America Inc.",367,{"$f":"VLOOKUP(A491,'2019'!A:A,1,FALSE)","v":"Aire-Master of America Inc."}]
["Acti-Kare Inc.",408,{"$f":"VLOOKUP(A492,'2019'!A:A,1,FALSE)","v":"Acti-Kare Inc."}]
["ACFN-The ATM Franchise Business",474,{"$f":"VLOOKUP(A493,'2019'!A:A,1,FALSE)","v":"ACFN-The ATM Franchise Business"}]
["Ace Hardware Corp.",19,{"$f":"VLOOKUP(A494,'2019'!A:A,1,FALSE)","v":"Ace Hardware Corp."}]
["AAMCO Transmissions and Total Car Care",315,{"$f":"VLOOKUP(A495,'2019'!A:A,1,FALSE)","v":"AAMCO Transmissions and Total Car Care"}]
["9Round",197,{"$f":"VLOOKUP(A496,'2019'!A:A,1,FALSE)","v":"9Round"}]
["911 Restoration",162,{"$f":"VLOOKUP(A497,'2019'!A:A,1,FALSE)","v":"911 Restoration"}]
["7-Eleven Inc.",2,{"$f":"VLOOKUP(A498,'2019'!A:A,1,FALSE)","v":"7-Eleven Inc."}]
["360 Painting",287,{"$f":"VLOOKUP(A499,'2019'!A:A,1,FALSE)","v":"360 Painting"}]
["1-800-Got-Junk?",482,{"$f":"VLOOKUP(A500,'2019'!A:A,1,FALSE)","v":"1-800-Got-Junk?"}]
["101 Mobility",134,{"$f":"VLOOKUP(A501,'2019'!A:A,1,FALSE)","v":"101 Mobility"}]